{"text_format":"1","workbook":"xlsx","n_sheets":6,"sheets":["Умная Т","Все МО","10 лучших","10 худших","Помесячно по МО","Дашборд ДВН"],"not_rendered":{"charts":8,"images":3,"macros":1,"external_links":0,"defined_names":2,"comments":0,"pivot_tables":4},"unopened":[],"bounds":{"document_bytes":16777216,"sheet_cells":100000,"rows_first":2000,"rows_last":500,"rows_between":2000,"halvings":0,"cell_chars":16384,"cell_head_chars":4096},"cells_cut":0,"cells_raw":0,"read":"whole","date_system":"1900"}

{"sheet":"Умная Т","index":0,"n_rows":243,"n_cols":67,"rows_kept":243,"cut":false,"hidden":true,"merged":[]}
[null,null,"Калужская область                                            по состоянию на 01.12.2022 г.",{"$f":"SUM(Таблица1[Оплачено случаев])","v":15700},null,{"$f":"SUM(Таблица1[План ДВН, чел.])","v":17087},null,null,"Выполнение плана, %",{"$f":"ROUND(D1/F1,3)","v":0.91900000000000004},null,null,null,null,null,{"$f":"(K24+P24+U24+Z24+AE24+AJ24+AO24+AT24+AY24+BD24+BI24+BN24)/(J24+O24+T24+Y24+AD24+AI24+AN24+AS24+AX24+BC24+BH24+BM24)*1000","v":2018.0015955414015}]
[null,null,"Средний тариф ДВН",{"$f":"P1","v":2018.0015955414015},null,null,null,null,null,null,"ФАКТ","ПЛАН",null,null,"ФАКТ",null,"ПЛАН",null,null,"ФАКТ",null,"ПЛАН",null,null,"ФАКТ",null,"ПЛАН",null,null,"ФАКТ",null,"ПЛАН",null,null,"ФАКТ",null,"ПЛАН",null,null,"ФАКТ",null,"ПЛАН",null,null,"ФАКТ",null,"ПЛАН",null,null,"ФАКТ",null,"ПЛАН",null,null,"ФАКТ",null,"ПЛАН",null,null,"ФАКТ",null,"ПЛАН",null,null,"ФАКТ",null,"ПЛАН"]
["Месяц","Вид ","Наименование медицинской организации","Оплачено случаев","Оплачено сумма, тыс.руб.","План ДВН, чел.","Отклонение","% выполнения",null,"1мес","январь","январь","2 мес",null,"Февраль",null,"Февраль","3 мес",null,"Март",null,"Март","4 мес",null,"Апрель",null,"Апрель","5 мес",null,"Май",null,"Май","6 мес",null,"Июнь",null,"Июнь","7 мес",null,"Июль",null,"Июль","8 мес",null,"Август",null,"Август","9 мес",null,"Сентябрь",null,"Сентябрь","10 мес",null,"Октябрь",null,"Октябрь","11 мес",null,"Ноябрь",null,"Ноябрь","12 мес",null,"Декабрь",null,"Декабрь"]
["Январь","ДВН","ЦМБ № 1",{"$f":"J4","v":106},{"$f":"K4","v":209.91060999999999},{"$f":"L4","v":164},{"$f":"Таблица1[[#This Row],[Оплачено случаев]]-Таблица1[[#This Row],[План ДВН, чел.]]","v":-58},{"$f":"ROUND(Таблица1[[#This Row],[Оплачено случаев]]/Таблица1[[#This Row],[План ДВН, чел.]]*100,1)","v":64.599999999999994},null,106,209.91060999999999,164,{"$f":"J4+O4","v":252},{"$f":"K4+P4","v":514.86249999999995},146,304.95188999999999,300,{"$f":"M4+T4","v":435},{"$f":"N4+U4","v":895.74912999999992},183,380.88663000000003,336,{"$f":"R4+Y4","v":435},{"$f":"S4+Z4","v":895.74912999999992},null,null,null,{"$f":"W4+AD4","v":435},{"$f":"X4+AE4","v":895.74912999999992},null,null,null,{"$f":"AB4+AI4","v":435},{"$f":"AC4+AJ4","v":895.74912999999992},null,null,null,{"$f":"AG4+AN4","v":435},{"$f":"AH4+AO4","v":895.74912999999992},null,null,null,{"$f":"AL4+AS4","v":435},{"$f":"AM4+AT4","v":895.74912999999992},null,null,null,{"$f":"AQ4+AX4","v":435},{"$f":"AR4+AY4","v":895.74912999999992},null,null,null,{"$f":"AV4+BC4","v":435},{"$f":"AW4+BD4","v":895.74912999999992},null,null,null,{"$f":"BH4+BA4","v":435},{"$f":"BB4+BI4","v":895.74912999999992},null,null,null,{"$f":"BF4+BM4","v":435},{"$f":"BG4+BN4","v":895.74912999999992}]
["Январь","ДВН","ЦМБ № 2",{"$f":"J5","v":382},{"$f":"K5","v":758.78379000000007},{"$f":"L5","v":286},{"$f":"Таблица1[[#This Row],[Оплачено случаев]]-Таблица1[[#This Row],[План ДВН, чел.]]","v":96},{"$f":"ROUND(Таблица1[[#This Row],[Оплачено случаев]]/Таблица1[[#This Row],[План ДВН, чел.]]*100,1)","v":133.6},null,382,758.78379000000007,286,{"$f":"J5+O5","v":679},{"$f":"K5+P5","v":1360.0301300000001},297,601.24633999999992,529,{"$f":"M5+T5","v":1017},{"$f":"N5+U5","v":2056.2732700000001},338,696.24314000000004,530,{"$f":"R5+Y5","v":1017},{"$f":"S5+Z5","v":2056.2732700000001},null,null,null,{"$f":"W5+AD5","v":1017},{"$f":"X5+AE5","v":2056.2732700000001},null,null,null,{"$f":"AB5+AI5","v":1017},{"$f":"AC5+AJ5","v":2056.2732700000001},null,null,null,{"$f":"AG5+AN5","v":1017},{"$f":"AH5+AO5","v":2056.2732700000001},null,null,null,{"$f":"AL5+AS5","v":1017},{"$f":"AM5+AT5","v":2056.2732700000001},null,null,null,{"$f":"AQ5+AX5","v":1017},{"$f":"AR5+AY5","v":2056.2732700000001},null,null,null,{"$f":"AV5+BC5","v":1017},{"$f":"AW5+BD5","v":2056.2732700000001},null,null,null,{"$f":"BH5+BA5","v":1017},{"$f":"BB5+BI5","v":2056.2732700000001},null,null,null,{"$f":"BF5+BM5","v":1017},{"$f":"BG5+BN5","v":2056.2732700000001}]
["Январь","ДВН","ЦМБ № 3",109,223.60201000000001,148,{"$f":"Таблица1[[#This Row],[Оплачено случаев]]-Таблица1[[#This Row],[План ДВН, чел.]]","v":-39},{"$f":"ROUND(Таблица1[[#This Row],[Оплачено случаев]]/Таблица1[[#This Row],[План ДВН, чел.]]*100,1)","v":73.599999999999994},null,109,223.60201000000001,148,200,403.73275000000001,91,180.13074,148,304,597.49630999999999,104,193.76355999999998,244,304,597.49630999999999,null,null,null,304,597.49630999999999,null,null,null,304,597.49630999999999,null,null,null,304,597.49630999999999,null,null,null,304,597.49630999999999,null,null,null,304,597.49630999999999,null,null,null,304,597.49630999999999,null,null,null,304,597.49630999999999,null,null,null,304,597.49630999999999]
["Январь","ДВН","ЦМБ № 4",34,68.312350000000009,89,{"$f":"Таблица1[[#This Row],[Оплачено случаев]]-Таблица1[[#This Row],[План ДВН, чел.]]","v":-55},{"$f":"ROUND(Таблица1[[#This Row],[Оплачено случаев]]/Таблица1[[#This Row],[План ДВН, чел.]]*100,1)","v":38.200000000000003},null,34,68.312350000000009,89,51,103.38372000000001,17,35.071370000000002,137,113,231.74471000000003,62,128.36099000000002,137,113,231.74471000000003,null,null,null,113,231.74471000000003,null,null,null,113,231.74471000000003,null,null,null,113,231.74471000000003,null,null,null,113,231.74471000000003,null,null,null,113,231.74471000000003,null,null,null,113,231.74471000000003,null,null,null,113,231.74471000000003,null,null,null,113,231.74471000000003]
["Январь","ДВН","ЦМБ № 5",14,32.277290000000001,133,{"$f":"Таблица1[[#This Row],[Оплачено случаев]]-Таблица1[[#This Row],[План ДВН, чел.]]","v":-119},{"$f":"ROUND(Таблица1[[#This Row],[Оплачено случаев]]/Таблица1[[#This Row],[План ДВН, чел.]]*100,1)","v":10.5},null,14,32.277290000000001,133,268,541.98140999999998,254,509.70411999999999,144,494,983.14638999999988,226,441.16497999999996,146,494,983.14638999999988,null,null,null,494,983.14638999999988,null,null,null,494,983.14638999999988,null,null,null,494,983.14638999999988,null,null,null,494,983.14638999999988,null,null,null,494,983.14638999999988,null,null,null,494,983.14638999999988,null,null,null,494,983.14638999999988,null,null,null,494,983.14638999999988]
["Январь","ДВН","ЦМБ № 6",260,509.49991999999997,300,{"$f":"Таблица1[[#This Row],[Оплачено случаев]]-Таблица1[[#This Row],[План ДВН, чел.]]","v":-40},{"$f":"ROUND(Таблица1[[#This Row],[Оплачено случаев]]/Таблица1[[#This Row],[План ДВН, чел.]]*100,1)","v":86.7},null,260,509.49991999999997,300,499,973.79757999999993,239,464.29765999999995,300,848,1651.8359599999999,349,678.03837999999996,350,848,1651.8359599999999,null,null,null,848,1651.8359599999999,null,null,null,848,1651.8359599999999,null,null,null,848,1651.8359599999999,null,null,null,848,1651.8359599999999,null,null,null,848,1651.8359599999999,null,null,null,848,1651.8359599999999,null,null,null,848,1651.8359599999999,null,null,null,848,1651.8359599999999]
["Январь","ДВН","КГБ № 5",657,1330.09196,393,{"$f":"Таблица1[[#This Row],[Оплачено случаев]]-Таблица1[[#This Row],[План ДВН, чел.]]","v":264},{"$f":"ROUND(Таблица1[[#This Row],[Оплачено случаев]]/Таблица1[[#This Row],[План ДВН, чел.]]*100,1)","v":167.2},null,657,1330.09196,393,1478,3025.6360999999997,821,1695.54414,1100,2509,5172.5904699999992,1031,2146.9543699999999,1100,2509,5172.5904699999992,null,null,null,2509,5172.5904699999992,null,null,null,2509,5172.5904699999992,null,null,null,2509,5172.5904699999992,null,null,null,2509,5172.5904699999992,null,null,null,2509,5172.5904699999992,null,null,null,2509,5172.5904699999992,null,null,null,2509,5172.5904699999992,null,null,null,2509,5172.5904699999992]
["Январь","ДВН","КГКБ № 4",736,1496.0648100000001,912,{"$f":"Таблица1[[#This Row],[Оплачено случаев]]-Таблица1[[#This Row],[План ДВН, чел.]]","v":-176},{"$f":"ROUND(Таблица1[[#This Row],[Оплачено случаев]]/Таблица1[[#This Row],[План ДВН, чел.]]*100,1)","v":80.7},null,736,1496.0648100000001,912,1614,3304.7752600000003,878,1808.71045,912,2764,5619.6987300000001,1150,2314.9234700000002,912,2764,5619.6987300000001,null,null,null,2764,5619.6987300000001,null,null,null,2764,5619.6987300000001,null,null,null,2764,5619.6987300000001,null,null,null,2764,5619.6987300000001,null,null,null,2764,5619.6987300000001,null,null,null,2764,5619.6987300000001,null,null,null,2764,5619.6987300000001,null,null,null,2764,5619.6987300000001]
["Январь","ДВН","Городская поликлиника",376,762.44760999999994,425,{"$f":"Таблица1[[#This Row],[Оплачено случаев]]-Таблица1[[#This Row],[План ДВН, чел.]]","v":-49},{"$f":"ROUND(Таблица1[[#This Row],[Оплачено случаев]]/Таблица1[[#This Row],[План ДВН, чел.]]*100,1)","v":88.5},null,376,762.44760999999994,425,702,1439.99278,326,677.5451700000001,456,1115,2259.05026,413,819.05747999999994,456,1115,2259.05026,null,null,null,1115,2259.05026,null,null,null,1115,2259.05026,null,null,null,1115,2259.05026,null,null,null,1115,2259.05026,null,null,null,1115,2259.05026,null,null,null,1115,2259.05026,null,null,null,1115,2259.05026,null,null,null,1115,2259.05026]
["Январь","ДВН","МСЧ № 1 г. Калуги",344,694.18468000000007,380,{"$f":"Таблица1[[#This Row],[Оплачено случаев]]-Таблица1[[#This Row],[План ДВН, чел.]]","v":-36},{"$f":"ROUND(Таблица1[[#This Row],[Оплачено случаев]]/Таблица1[[#This Row],[План ДВН, чел.]]*100,1)","v":90.5},null,344,694.18468000000007,380,1128,2221.00938,784,1526.8246999999999,620,1958,3638.2083499999999,830,1417.1989699999999,600,1958,3638.2083499999999,null,null,null,1958,3638.2083499999999,null,null,null,1958,3638.2083499999999,null,null,null,1958,3638.2083499999999,null,null,null,1958,3638.2083499999999,null,null,null,1958,3638.2083499999999,null,null,null,1958,3638.2083499999999,null,null,null,1958,3638.2083499999999,null,null,null,1958,3638.2083499999999]
["Январь","ДВН","МСЧ № 2 г. Калуги",0,0,0,{"$f":"Таблица1[[#This Row],[Оплачено случаев]]-Таблица1[[#This Row],[План ДВН, чел.]]","v":0},{"$f":"ROUND(Таблица1[[#This Row],[Оплачено случаев]]/Таблица1[[#This Row],[План ДВН, чел.]]*100,1)","v":{"$error":"#DIV/0!"}},null,0,0,0,0,0,null,0,1,1,2.4697399999999998,1,2.4697399999999998,0,1,2.4697399999999998,null,null,null,1,2.4697399999999998,null,null,null,1,2.4697399999999998,null,null,null,1,2.4697399999999998,null,null,null,1,2.4697399999999998,null,null,null,1,2.4697399999999998,null,null,null,1,2.4697399999999998,null,null,null,1,2.4697399999999998,null,null,null,1,2.4697399999999998]
["Январь","ДВН","МСЧ МВД",0,0,0,{"$f":"Таблица1[[#This Row],[Оплачено случаев]]-Таблица1[[#This Row],[План ДВН, чел.]]","v":0},{"$f":"ROUND(Таблица1[[#This Row],[Оплачено случаев]]/Таблица1[[#This Row],[План ДВН, чел.]]*100,1)","v":{"$error":"#DIV/0!"}},null,0,0,0,0,0,null,0,null,0,0,null,0,null,0,0,null,null,null,0,0,null,null,null,0,0,null,null,null,0,0,null,null,null,0,0,null,null,null,0,0,null,null,null,0,0,null,null,null,0,0,null,null,null,0,0]
["Январь","ДВН","ЧУЗ \"Больница \"РЖД - Медицина\" ",42,88.144259999999989,35,{"$f":"Таблица1[[#This Row],[Оплачено случаев]]-Таблица1[[#This Row],[План ДВН, чел.]]","v":7},{"$f":"ROUND(Таблица1[[#This Row],[Оплачено случаев]]/Таблица1[[#This Row],[План ДВН, чел.]]*100,1)","v":120},null,42,88.144259999999989,35,66,134.54406,24,46.399800000000006,36,102,207.10705999999999,36,72.563000000000002,36,102,207.10705999999999,null,null,null,102,207.10705999999999,null,null,null,102,207.10705999999999,null,null,null,102,207.10705999999999,null,null,null,102,207.10705999999999,null,null,null,102,207.10705999999999,null,null,null,102,207.10705999999999,null,null,null,102,207.10705999999999,null,null,null,102,207.10705999999999]
["Январь","ДВН","КБ № 8 ФМБА",654,1363.81945,395,{"$f":"Таблица1[[#This Row],[Оплачено случаев]]-Таблица1[[#This Row],[План ДВН, чел.]]","v":259},{"$f":"ROUND(Таблица1[[#This Row],[Оплачено случаев]]/Таблица1[[#This Row],[План ДВН, чел.]]*100,1)","v":165.6},null,654,1363.81945,395,1251,2599.6479399999998,597,1235.8284900000001,725,1815,3737.3224,564,1137.67446,875,1815,3737.3224,null,null,null,1815,3737.3224,null,null,null,1815,3737.3224,null,null,null,1815,3737.3224,null,null,null,1815,3737.3224,null,null,null,1815,3737.3224,null,null,null,1815,3737.3224,null,null,null,1815,3737.3224,null,null,null,1815,3737.3224]
["Январь","ДВН","ЦРБ Бабынинского района",69,141.90129000000002,82,{"$f":"Таблица1[[#This Row],[Оплачено случаев]]-Таблица1[[#This Row],[План ДВН, чел.]]","v":-13},{"$f":"ROUND(Таблица1[[#This Row],[Оплачено случаев]]/Таблица1[[#This Row],[План ДВН, чел.]]*100,1)","v":84.1},null,69,141.90129000000002,82,138,278.71293000000003,69,136.81164000000001,101,252,499.00114000000002,114,220.28820999999999,101,252,499.00114000000002,null,null,null,252,499.00114000000002,null,null,null,252,499.00114000000002,null,null,null,252,499.00114000000002,null,null,null,252,499.00114000000002,null,null,null,252,499.00114000000002,null,null,null,252,499.00114000000002,null,null,null,252,499.00114000000002,null,null,null,252,499.00114000000002]
["Январь","ДВН","ЦРБ Боровского района",296,634.88558999999998,200,{"$f":"Таблица1[[#This Row],[Оплачено случаев]]-Таблица1[[#This Row],[План ДВН, чел.]]","v":96},{"$f":"ROUND(Таблица1[[#This Row],[Оплачено случаев]]/Таблица1[[#This Row],[План ДВН, чел.]]*100,1)","v":148},null,296,634.88558999999998,200,480,1044.8444399999998,184,409.95884999999998,200,777,1690.0186299999998,297,645.17418999999995,200,777,1690.0186299999998,null,null,null,777,1690.0186299999998,null,null,null,777,1690.0186299999998,null,null,null,777,1690.0186299999998,null,null,null,777,1690.0186299999998,null,null,null,777,1690.0186299999998,null,null,null,777,1690.0186299999998,null,null,null,777,1690.0186299999998,null,null,null,777,1690.0186299999998]
["Январь","ДВН","ЦРБ Жуковского района",74,156.62049999999999,110,{"$f":"Таблица1[[#This Row],[Оплачено случаев]]-Таблица1[[#This Row],[План ДВН, чел.]]","v":-36},{"$f":"ROUND(Таблица1[[#This Row],[Оплачено случаев]]/Таблица1[[#This Row],[План ДВН, чел.]]*100,1)","v":67.3},null,74,156.62049999999999,110,129,271.19675000000001,55,114.57625,110,418,863.55951000000005,289,592.36275999999998,120,418,863.55951000000005,null,null,null,418,863.55951000000005,null,null,null,418,863.55951000000005,null,null,null,418,863.55951000000005,null,null,null,418,863.55951000000005,null,null,null,418,863.55951000000005,null,null,null,418,863.55951000000005,null,null,null,418,863.55951000000005,null,null,null,418,863.55951000000005]
["Январь","ДВН","ГП \"Город Кременки\"",13,24.410589999999999,30,{"$f":"Таблица1[[#This Row],[Оплачено случаев]]-Таблица1[[#This Row],[План ДВН, чел.]]","v":-17},{"$f":"ROUND(Таблица1[[#This Row],[Оплачено случаев]]/Таблица1[[#This Row],[План ДВН, чел.]]*100,1)","v":43.3},null,13,24.410589999999999,30,25,49.70655,12,25.295960000000001,50,44,90.860680000000002,19,41.154129999999995,50,44,90.860680000000002,null,null,null,44,90.860680000000002,null,null,null,44,90.860680000000002,null,null,null,44,90.860680000000002,null,null,null,44,90.860680000000002,null,null,null,44,90.860680000000002,null,null,null,44,90.860680000000002,null,null,null,44,90.860680000000002,null,null,null,44,90.860680000000002]
["Январь","ДВН","ЦРБ Малоярославецкого района",280,573.71118999999999,273,{"$f":"Таблица1[[#This Row],[Оплачено случаев]]-Таблица1[[#This Row],[План ДВН, чел.]]","v":7},{"$f":"ROUND(Таблица1[[#This Row],[Оплачено случаев]]/Таблица1[[#This Row],[План ДВН, чел.]]*100,1)","v":102.6},null,280,573.71118999999999,273,443,902.27128999999991,163,328.56009999999998,273,612,1239.5224799999999,169,337.25119000000001,273,612,1239.5224799999999,null,null,null,612,1239.5224799999999,null,null,null,612,1239.5224799999999,null,null,null,612,1239.5224799999999,null,null,null,612,1239.5224799999999,null,null,null,612,1239.5224799999999,null,null,null,612,1239.5224799999999,null,null,null,612,1239.5224799999999,null,null,null,612,1239.5224799999999]
["Январь","ДВН","ЦРБ  Тарусского района",34,68.980380000000011,23,{"$f":"Таблица1[[#This Row],[Оплачено случаев]]-Таблица1[[#This Row],[План ДВН, чел.]]","v":11},{"$f":"ROUND(Таблица1[[#This Row],[Оплачено случаев]]/Таблица1[[#This Row],[План ДВН, чел.]]*100,1)","v":147.80000000000001},null,34,68.980380000000011,23,66,133.67786000000001,32,64.697479999999999,51,122,246.96983,56,113.29197000000001,50,122,246.96983,null,null,null,122,246.96983,null,null,null,122,246.96983,null,null,null,122,246.96983,null,null,null,122,246.96983,null,null,null,122,246.96983,null,null,null,122,246.96983,null,null,null,122,246.96983,null,null,null,122,246.96983]
["Февраль","ДВН","ЦМБ № 1",{"$f":"O4","v":146},{"$f":"P4","v":304.95188999999999},{"$f":"Q4","v":300},{"$f":"Таблица1[[#This Row],[Оплачено случаев]]-Таблица1[[#This Row],[План ДВН, чел.]]","v":-154},{"$f":"ROUND(Таблица1[[#This Row],[Оплачено случаев]]/Таблица1[[#This Row],[План ДВН, чел.]]*100,1)","v":48.7},null,{"$f":"SUM(J4:J23)","v":4480},9137.6482799999994,4378,9469,19303.80343,4989,10166.155150000001,6193,15700,31682.625050000002,6231,12378.821620000002,6516,15700,31682.625050000002,0,0,0,15700,31682.625050000002,0,0,0,15700,31682.625050000002,0,0,0,15700,31682.625050000002,0,0,{"$f":"SUM(AP4:AP23)","v":0},15700,31682.625050000002,0,0,0,15700,31682.625050000002,0,0,0,15700,31682.625050000002,0,0,0,15700,31682.625050000002,0,0,0,15700,31682.625050000002,0,0]
["Февраль","ДВН","ЦМБ № 2",297,601.24633999999992,529,{"$f":"Таблица1[[#This Row],[Оплачено случаев]]-Таблица1[[#This Row],[План ДВН, чел.]]","v":-232},{"$f":"ROUND(Таблица1[[#This Row],[Оплачено случаев]]/Таблица1[[#This Row],[План ДВН, чел.]]*100,1)","v":56.1},null,null,null,null,null,{"$f":"N24*1000/M24","v":2038.6316855000528}]
["Февраль","ДВН","ЦМБ № 3",91,180.13074,148,{"$f":"Таблица1[[#This Row],[Оплачено случаев]]-Таблица1[[#This Row],[План ДВН, чел.]]","v":-57},{"$f":"ROUND(Таблица1[[#This Row],[Оплачено случаев]]/Таблица1[[#This Row],[План ДВН, чел.]]*100,1)","v":61.5}]
["Февраль","ДВН","ЦМБ № 4",17,35.071370000000002,137,{"$f":"Таблица1[[#This Row],[Оплачено случаев]]-Таблица1[[#This Row],[План ДВН, чел.]]","v":-120},{"$f":"ROUND(Таблица1[[#This Row],[Оплачено случаев]]/Таблица1[[#This Row],[План ДВН, чел.]]*100,1)","v":12.4}]
["Февраль","ДВН","ЦМБ № 5",254,509.70411999999999,144,{"$f":"Таблица1[[#This Row],[Оплачено случаев]]-Таблица1[[#This Row],[План ДВН, чел.]]","v":110},{"$f":"ROUND(Таблица1[[#This Row],[Оплачено случаев]]/Таблица1[[#This Row],[План ДВН, чел.]]*100,1)","v":176.4},null,null,null,null,null,null,null,null,null,null,null,null,null,null,null,null,null,null,null,null,null,null,{"$f":"AE4/1000","v":0},null,null,null,null,{"$f":"AJ4/1000","v":0},null,null,null,null,{"$f":"AO4/1000","v":0},null,null,null,null,{"$f":"AT4/1000","v":0},null,null,null,null,{"$f":"AY4/1000","v":0},null,null,null,null,{"$f":"BD4/1000","v":0},null,null,null,null,{"$f":"BI4/1000","v":0}]
["Февраль","ДВН","ЦМБ № 6",239,464.29765999999995,300,{"$f":"Таблица1[[#This Row],[Оплачено случаев]]-Таблица1[[#This Row],[План ДВН, чел.]]","v":-61},{"$f":"ROUND(Таблица1[[#This Row],[Оплачено случаев]]/Таблица1[[#This Row],[План ДВН, чел.]]*100,1)","v":79.7},null,null,null,null,null,null,null,null,null,null,null,null,null,null,null,null,null,null,null,null,null,null,{"$f":"AE5/1000","v":0},null,null,null,null,{"$f":"AJ5/1000","v":0},null,null,null,null,{"$f":"AO5/1000","v":0},null,null,null,null,{"$f":"AT5/1000","v":0},null,null,null,null,{"$f":"AY5/1000","v":0},null,null,null,null,{"$f":"BD5/1000","v":0},null,null,null,null,{"$f":"BI5/1000","v":0}]
["Февраль","ДВН","КГБ № 5",821,1695.54414,1100,{"$f":"Таблица1[[#This Row],[Оплачено случаев]]-Таблица1[[#This Row],[План ДВН, чел.]]","v":-279},{"$f":"ROUND(Таблица1[[#This Row],[Оплачено случаев]]/Таблица1[[#This Row],[План ДВН, чел.]]*100,1)","v":74.599999999999994},null,null,null,null,null,null,null,null,null,null,null,null,null,null,null,null,null,null,null,null,null,null,0,null,null,null,null,0,null,null,null,null,0,null,null,null,null,0,null,null,null,null,0,null,null,null,null,0,null,null,null,null,0]
["Февраль","ДВН","КГКБ № 4",878,1808.71045,912,{"$f":"Таблица1[[#This Row],[Оплачено случаев]]-Таблица1[[#This Row],[План ДВН, чел.]]","v":-34},{"$f":"ROUND(Таблица1[[#This Row],[Оплачено случаев]]/Таблица1[[#This Row],[План ДВН, чел.]]*100,1)","v":96.3},null,null,null,null,null,null,null,null,null,null,null,null,null,null,null,null,null,null,null,null,null,null,0,null,null,null,null,0,null,null,null,null,0,null,null,null,null,0,null,null,null,null,0,null,null,null,null,0,null,null,null,null,0]
["Февраль","ДВН","Городская поликлиника",326,677.5451700000001,456,{"$f":"Таблица1[[#This Row],[Оплачено случаев]]-Таблица1[[#This Row],[План ДВН, чел.]]","v":-130},{"$f":"ROUND(Таблица1[[#This Row],[Оплачено случаев]]/Таблица1[[#This Row],[План ДВН, чел.]]*100,1)","v":71.5},null,null,null,null,null,null,null,null,null,null,null,null,null,null,null,null,null,null,null,null,null,null,0,null,null,null,null,0,null,null,null,null,0,null,null,null,null,0,null,null,null,null,0,null,null,null,null,0,null,null,null,null,0]
["Февраль","ДВН","МСЧ № 1 г. Калуги",784,1526.8246999999999,620,{"$f":"Таблица1[[#This Row],[Оплачено случаев]]-Таблица1[[#This Row],[План ДВН, чел.]]","v":164},{"$f":"ROUND(Таблица1[[#This Row],[Оплачено случаев]]/Таблица1[[#This Row],[План ДВН, чел.]]*100,1)","v":126.5},null,null,null,null,null,null,null,null,null,null,null,null,null,null,null,null,null,null,null,null,null,null,0,null,null,null,null,0,null,null,null,null,0,null,null,null,null,0,null,null,null,null,0,null,null,null,null,0,null,null,null,null,0]
["Февраль","ДВН","МСЧ № 2 г. Калуги",0,0,1,{"$f":"Таблица1[[#This Row],[Оплачено случаев]]-Таблица1[[#This Row],[План ДВН, чел.]]","v":-1},{"$f":"ROUND(Таблица1[[#This Row],[Оплачено случаев]]/Таблица1[[#This Row],[План ДВН, чел.]]*100,1)","v":0},null,null,null,null,null,null,null,null,null,null,null,null,null,null,null,null,null,null,null,null,null,null,0,null,null,null,null,0,null,null,null,null,0,null,null,null,null,0,null,null,null,null,0,null,null,null,null,0,null,null,null,null,0]
["Февраль","ДВН","МСЧ МВД",0,0,0,{"$f":"Таблица1[[#This Row],[Оплачено случаев]]-Таблица1[[#This Row],[План ДВН, чел.]]","v":0},{"$f":"ROUND(Таблица1[[#This Row],[Оплачено случаев]]/Таблица1[[#This Row],[План ДВН, чел.]]*100,1)","v":{"$error":"#DIV/0!"}},null,null,null,null,null,null,null,null,null,null,null,null,null,null,null,null,null,null,null,null,null,null,0,null,null,null,null,0,null,null,null,null,0,null,null,null,null,0,null,null,null,null,0,null,null,null,null,0,null,null,null,null,0]
["Февраль","ДВН","ЧУЗ \"Больница \"РЖД - Медицина\" ",24,46.399800000000006,36,{"$f":"Таблица1[[#This Row],[Оплачено случаев]]-Таблица1[[#This Row],[План ДВН, чел.]]","v":-12},{"$f":"ROUND(Таблица1[[#This Row],[Оплачено случаев]]/Таблица1[[#This Row],[План ДВН, чел.]]*100,1)","v":66.7},null,null,null,null,null,null,null,null,null,null,null,null,null,null,null,null,null,null,null,null,null,null,0,null,null,null,null,0,null,null,null,null,0,null,null,null,null,0,null,null,null,null,0,null,null,null,null,0,null,null,null,null,0]
["Февраль","ДВН","КБ № 8 ФМБА",597,1235.8284900000001,725,{"$f":"Таблица1[[#This Row],[Оплачено случаев]]-Таблица1[[#This Row],[План ДВН, чел.]]","v":-128},{"$f":"ROUND(Таблица1[[#This Row],[Оплачено случаев]]/Таблица1[[#This Row],[План ДВН, чел.]]*100,1)","v":82.3},null,null,null,null,null,null,null,null,null,null,null,null,null,null,null,null,null,null,null,null,null,null,0,null,null,null,null,0,null,null,null,null,0,null,null,null,null,0,null,null,null,null,0,null,null,null,null,0,null,null,null,null,0]
["Февраль","ДВН","ЦРБ Бабынинского района",69,136.81164000000001,101,{"$f":"Таблица1[[#This Row],[Оплачено случаев]]-Таблица1[[#This Row],[План ДВН, чел.]]","v":-32},{"$f":"ROUND(Таблица1[[#This Row],[Оплачено случаев]]/Таблица1[[#This Row],[План ДВН, чел.]]*100,1)","v":68.3},null,null,null,null,null,null,null,null,null,null,null,null,null,null,null,null,null,null,null,null,null,null,0,null,null,null,null,0,null,null,null,null,0,null,null,null,null,0,null,null,null,null,0,null,null,null,null,0,null,null,null,null,0]
["Февраль","ДВН","ЦРБ Боровского района",184,409.95884999999998,200,{"$f":"Таблица1[[#This Row],[Оплачено случаев]]-Таблица1[[#This Row],[План ДВН, чел.]]","v":-16},{"$f":"ROUND(Таблица1[[#This Row],[Оплачено случаев]]/Таблица1[[#This Row],[План ДВН, чел.]]*100,1)","v":92},null,null,null,null,null,null,null,null,null,null,null,null,null,null,null,null,null,null,null,null,null,null,0,null,null,null,null,0,null,null,null,null,0,null,null,null,null,0,null,null,null,null,0,null,null,null,null,0,null,null,null,null,0]
["Февраль","ДВН","ЦРБ Жуковского района",55,114.57625,110,{"$f":"Таблица1[[#This Row],[Оплачено случаев]]-Таблица1[[#This Row],[План ДВН, чел.]]","v":-55},{"$f":"ROUND(Таблица1[[#This Row],[Оплачено случаев]]/Таблица1[[#This Row],[План ДВН, чел.]]*100,1)","v":50},null,null,null,null,null,null,null,null,null,null,null,null,null,null,null,null,null,null,null,null,null,null,0,null,null,null,null,0,null,null,null,null,0,null,null,null,null,0,null,null,null,null,0,null,null,null,null,0,null,null,null,null,0]
["Февраль","ДВН","ГП \"Город Кременки\"",12,25.295960000000001,50,{"$f":"Таблица1[[#This Row],[Оплачено случаев]]-Таблица1[[#This Row],[План ДВН, чел.]]","v":-38},{"$f":"ROUND(Таблица1[[#This Row],[Оплачено случаев]]/Таблица1[[#This Row],[План ДВН, чел.]]*100,1)","v":24},null,null,null,null,null,null,null,null,null,null,null,null,null,null,null,null,null,null,null,null,null,null,0,null,null,null,null,0,null,null,null,null,0,null,null,null,null,0,null,null,null,null,0,null,null,null,null,0,null,null,null,null,0]
["Февраль","ДВН","ЦРБ Малоярославецкого района",163,328.56009999999998,273,{"$f":"Таблица1[[#This Row],[Оплачено случаев]]-Таблица1[[#This Row],[План ДВН, чел.]]","v":-110},{"$f":"ROUND(Таблица1[[#This Row],[Оплачено случаев]]/Таблица1[[#This Row],[План ДВН, чел.]]*100,1)","v":59.7},null,null,null,null,null,null,null,null,null,null,null,null,null,null,null,null,null,null,null,null,null,null,0,null,null,null,null,0,null,null,null,null,0,null,null,null,null,0,null,null,null,null,0,null,null,null,null,0,null,null,null,null,0]
["Февраль","ДВН","ЦРБ  Тарусского района",32,64.697479999999999,51,{"$f":"Таблица1[[#This Row],[Оплачено случаев]]-Таблица1[[#This Row],[План ДВН, чел.]]","v":-19},{"$f":"ROUND(Таблица1[[#This Row],[Оплачено случаев]]/Таблица1[[#This Row],[План ДВН, чел.]]*100,1)","v":62.7},null,null,null,null,null,null,null,null,null,null,null,null,null,null,null,null,null,null,null,null,null,null,0,null,null,null,null,0,null,null,null,null,0,null,null,null,null,0,null,null,null,null,0,null,null,null,null,0,null,null,null,null,0]
["Март","ДВН","ЦМБ № 1",{"$f":"T4","v":183},{"$f":"U4","v":380.88663000000003},{"$f":"V4","v":336},{"$f":"Таблица1[[#This Row],[Оплачено случаев]]-Таблица1[[#This Row],[План ДВН, чел.]]","v":-153},{"$f":"ROUND(Таблица1[[#This Row],[Оплачено случаев]]/Таблица1[[#This Row],[План ДВН, чел.]]*100,1)","v":54.5},null,null,null,null,null,null,null,null,null,null,null,null,null,null,null,null,null,null,null,null,null,null,0,null,null,null,null,0,null,null,null,null,0,null,null,null,null,0,null,null,null,null,0,null,null,null,null,0,null,null,null,null,0]
["Март","ДВН","ЦМБ № 2",338,696.24314000000004,530,{"$f":"Таблица1[[#This Row],[Оплачено случаев]]-Таблица1[[#This Row],[План ДВН, чел.]]","v":-192},{"$f":"ROUND(Таблица1[[#This Row],[Оплачено случаев]]/Таблица1[[#This Row],[План ДВН, чел.]]*100,1)","v":63.8},null,null,null,null,null,null,null,null,null,null,null,null,null,null,null,null,null,null,null,null,null,null,0,null,null,null,null,0,null,null,null,null,0,null,null,null,null,0,null,null,null,null,0,null,null,null,null,0,null,null,null,null,0]
["Март","ДВН","ЦМБ № 3",104,193.76355999999998,244,{"$f":"Таблица1[[#This Row],[Оплачено случаев]]-Таблица1[[#This Row],[План ДВН, чел.]]","v":-140},{"$f":"ROUND(Таблица1[[#This Row],[Оплачено случаев]]/Таблица1[[#This Row],[План ДВН, чел.]]*100,1)","v":42.6},null,null,null,null,null,null,null,null,null,null,null,null,null,null,null,null,null,null,null,null,null,null,0,null,null,null,null,0,null,null,null,null,0,null,null,null,null,0,null,null,null,null,0,null,null,null,null,0,null,null,null,null,0]
["Март","ДВН","ЦМБ № 4",62,128.36099000000002,137,{"$f":"Таблица1[[#This Row],[Оплачено случаев]]-Таблица1[[#This Row],[План ДВН, чел.]]","v":-75},{"$f":"ROUND(Таблица1[[#This Row],[Оплачено случаев]]/Таблица1[[#This Row],[План ДВН, чел.]]*100,1)","v":45.3},null,null,null,null,null,null,null,null,null,null,null,null,null,null,null,null,null,null,null,null,null,null,0,null,null,null,null,0,null,null,null,null,0,null,null,null,null,0,null,null,null,null,0,null,null,null,null,0,null,null,null,null,0]
["Март","ДВН","ЦМБ № 5",226,441.16497999999996,146,{"$f":"Таблица1[[#This Row],[Оплачено случаев]]-Таблица1[[#This Row],[План ДВН, чел.]]","v":80},{"$f":"ROUND(Таблица1[[#This Row],[Оплачено случаев]]/Таблица1[[#This Row],[План ДВН, чел.]]*100,1)","v":154.80000000000001}]
["Март","ДВН","ЦМБ № 6",349,678.03837999999996,350,{"$f":"Таблица1[[#This Row],[Оплачено случаев]]-Таблица1[[#This Row],[План ДВН, чел.]]","v":-1},{"$f":"ROUND(Таблица1[[#This Row],[Оплачено случаев]]/Таблица1[[#This Row],[План ДВН, чел.]]*100,1)","v":99.7}]
["Март","ДВН","КГБ № 5",1031,2146.9543699999999,1100,{"$f":"Таблица1[[#This Row],[Оплачено случаев]]-Таблица1[[#This Row],[План ДВН, чел.]]","v":-69},{"$f":"ROUND(Таблица1[[#This Row],[Оплачено случаев]]/Таблица1[[#This Row],[План ДВН, чел.]]*100,1)","v":93.7}]
["Март","ДВН","КГКБ № 4",1150,2314.9234700000002,912,{"$f":"Таблица1[[#This Row],[Оплачено случаев]]-Таблица1[[#This Row],[План ДВН, чел.]]","v":238},{"$f":"ROUND(Таблица1[[#This Row],[Оплачено случаев]]/Таблица1[[#This Row],[План ДВН, чел.]]*100,1)","v":126.1}]
["Март","ДВН","Городская поликлиника",413,819.05747999999994,456,{"$f":"Таблица1[[#This Row],[Оплачено случаев]]-Таблица1[[#This Row],[План ДВН, чел.]]","v":-43},{"$f":"ROUND(Таблица1[[#This Row],[Оплачено случаев]]/Таблица1[[#This Row],[План ДВН, чел.]]*100,1)","v":90.6}]
["Март","ДВН","МСЧ № 1 г. Калуги",830,1417.1989699999999,600,{"$f":"Таблица1[[#This Row],[Оплачено случаев]]-Таблица1[[#This Row],[План ДВН, чел.]]","v":230},{"$f":"ROUND(Таблица1[[#This Row],[Оплачено случаев]]/Таблица1[[#This Row],[План ДВН, чел.]]*100,1)","v":138.30000000000001}]
["Март","ДВН","МСЧ № 2 г. Калуги",1,2.4697399999999998,0,{"$f":"Таблица1[[#This Row],[Оплачено случаев]]-Таблица1[[#This Row],[План ДВН, чел.]]","v":1},{"$f":"ROUND(Таблица1[[#This Row],[Оплачено случаев]]/Таблица1[[#This Row],[План ДВН, чел.]]*100,1)","v":{"$error":"#DIV/0!"}}]
["Март","ДВН","МСЧ МВД",0,0,0,{"$f":"Таблица1[[#This Row],[Оплачено случаев]]-Таблица1[[#This Row],[План ДВН, чел.]]","v":0},{"$f":"ROUND(Таблица1[[#This Row],[Оплачено случаев]]/Таблица1[[#This Row],[План ДВН, чел.]]*100,1)","v":{"$error":"#DIV/0!"}}]
["Март","ДВН","ЧУЗ \"Больница \"РЖД - Медицина\" ",36,72.563000000000002,36,{"$f":"Таблица1[[#This Row],[Оплачено случаев]]-Таблица1[[#This Row],[План ДВН, чел.]]","v":0},{"$f":"ROUND(Таблица1[[#This Row],[Оплачено случаев]]/Таблица1[[#This Row],[План ДВН, чел.]]*100,1)","v":100}]
["Март","ДВН","КБ № 8 ФМБА",564,1137.67446,875,{"$f":"Таблица1[[#This Row],[Оплачено случаев]]-Таблица1[[#This Row],[План ДВН, чел.]]","v":-311},{"$f":"ROUND(Таблица1[[#This Row],[Оплачено случаев]]/Таблица1[[#This Row],[План ДВН, чел.]]*100,1)","v":64.5}]
["Март","ДВН","ЦРБ Бабынинского района",114,220.28820999999999,101,{"$f":"Таблица1[[#This Row],[Оплачено случаев]]-Таблица1[[#This Row],[План ДВН, чел.]]","v":13},{"$f":"ROUND(Таблица1[[#This Row],[Оплачено случаев]]/Таблица1[[#This Row],[План ДВН, чел.]]*100,1)","v":112.9}]
["Март","ДВН","ЦРБ Боровского района",297,645.17418999999995,200,{"$f":"Таблица1[[#This Row],[Оплачено случаев]]-Таблица1[[#This Row],[План ДВН, чел.]]","v":97},{"$f":"ROUND(Таблица1[[#This Row],[Оплачено случаев]]/Таблица1[[#This Row],[План ДВН, чел.]]*100,1)","v":148.5}]
["Март","ДВН","ЦРБ Жуковского района",289,592.36275999999998,120,{"$f":"Таблица1[[#This Row],[Оплачено случаев]]-Таблица1[[#This Row],[План ДВН, чел.]]","v":169},{"$f":"ROUND(Таблица1[[#This Row],[Оплачено случаев]]/Таблица1[[#This Row],[План ДВН, чел.]]*100,1)","v":240.8}]
["Март","ДВН","ГП \"Город Кременки\"",19,41.154129999999995,50,{"$f":"Таблица1[[#This Row],[Оплачено случаев]]-Таблица1[[#This Row],[План ДВН, чел.]]","v":-31},{"$f":"ROUND(Таблица1[[#This Row],[Оплачено случаев]]/Таблица1[[#This Row],[План ДВН, чел.]]*100,1)","v":38}]
["Март","ДВН","ЦРБ Малоярославецкого района",169,337.25119000000001,273,{"$f":"Таблица1[[#This Row],[Оплачено случаев]]-Таблица1[[#This Row],[План ДВН, чел.]]","v":-104},{"$f":"ROUND(Таблица1[[#This Row],[Оплачено случаев]]/Таблица1[[#This Row],[План ДВН, чел.]]*100,1)","v":61.9}]
["Март","ДВН","ЦРБ  Тарусского района",56,113.29197000000001,50,{"$f":"Таблица1[[#This Row],[Оплачено случаев]]-Таблица1[[#This Row],[План ДВН, чел.]]","v":6},{"$f":"ROUND(Таблица1[[#This Row],[Оплачено случаев]]/Таблица1[[#This Row],[План ДВН, чел.]]*100,1)","v":112}]
["Апрель","ДВН","ЦМБ № 1",{"$f":"Y4","v":0},{"$f":"Z4","v":0},{"$f":"AA4","v":0},{"$f":"Таблица1[[#This Row],[Оплачено случаев]]-Таблица1[[#This Row],[План ДВН, чел.]]","v":0},{"$f":"ROUND(Таблица1[[#This Row],[Оплачено случаев]]/Таблица1[[#This Row],[План ДВН, чел.]]*100,1)","v":{"$error":"#DIV/0!"}}]
["Апрель","ДВН","ЦМБ № 2",0,0,0,{"$f":"Таблица1[[#This Row],[Оплачено случаев]]-Таблица1[[#This Row],[План ДВН, чел.]]","v":0},{"$f":"ROUND(Таблица1[[#This Row],[Оплачено случаев]]/Таблица1[[#This Row],[План ДВН, чел.]]*100,1)","v":{"$error":"#DIV/0!"}}]
["Апрель","ДВН","ЦМБ № 3",0,0,0,{"$f":"Таблица1[[#This Row],[Оплачено случаев]]-Таблица1[[#This Row],[План ДВН, чел.]]","v":0},{"$f":"ROUND(Таблица1[[#This Row],[Оплачено случаев]]/Таблица1[[#This Row],[План ДВН, чел.]]*100,1)","v":{"$error":"#DIV/0!"}}]
["Апрель","ДВН","ЦМБ № 4",0,0,0,{"$f":"Таблица1[[#This Row],[Оплачено случаев]]-Таблица1[[#This Row],[План ДВН, чел.]]","v":0},{"$f":"ROUND(Таблица1[[#This Row],[Оплачено случаев]]/Таблица1[[#This Row],[План ДВН, чел.]]*100,1)","v":{"$error":"#DIV/0!"}}]
["Апрель","ДВН","ЦМБ № 5",0,0,0,{"$f":"Таблица1[[#This Row],[Оплачено случаев]]-Таблица1[[#This Row],[План ДВН, чел.]]","v":0},{"$f":"ROUND(Таблица1[[#This Row],[Оплачено случаев]]/Таблица1[[#This Row],[План ДВН, чел.]]*100,1)","v":{"$error":"#DIV/0!"}}]
["Апрель","ДВН","ЦМБ № 6",0,0,0,{"$f":"Таблица1[[#This Row],[Оплачено случаев]]-Таблица1[[#This Row],[План ДВН, чел.]]","v":0},{"$f":"ROUND(Таблица1[[#This Row],[Оплачено случаев]]/Таблица1[[#This Row],[План ДВН, чел.]]*100,1)","v":{"$error":"#DIV/0!"}}]
["Апрель","ДВН","КГБ № 5",0,0,0,{"$f":"Таблица1[[#This Row],[Оплачено случаев]]-Таблица1[[#This Row],[План ДВН, чел.]]","v":0},{"$f":"ROUND(Таблица1[[#This Row],[Оплачено случаев]]/Таблица1[[#This Row],[План ДВН, чел.]]*100,1)","v":{"$error":"#DIV/0!"}}]
["Апрель","ДВН","КГКБ № 4",0,0,0,{"$f":"Таблица1[[#This Row],[Оплачено случаев]]-Таблица1[[#This Row],[План ДВН, чел.]]","v":0},{"$f":"ROUND(Таблица1[[#This Row],[Оплачено случаев]]/Таблица1[[#This Row],[План ДВН, чел.]]*100,1)","v":{"$error":"#DIV/0!"}}]
["Апрель","ДВН","Городская поликлиника",0,0,0,{"$f":"Таблица1[[#This Row],[Оплачено случаев]]-Таблица1[[#This Row],[План ДВН, чел.]]","v":0},{"$f":"ROUND(Таблица1[[#This Row],[Оплачено случаев]]/Таблица1[[#This Row],[План ДВН, чел.]]*100,1)","v":{"$error":"#DIV/0!"}}]
["Апрель","ДВН","МСЧ № 1 г. Калуги",0,0,0,{"$f":"Таблица1[[#This Row],[Оплачено случаев]]-Таблица1[[#This Row],[План ДВН, чел.]]","v":0},{"$f":"ROUND(Таблица1[[#This Row],[Оплачено случаев]]/Таблица1[[#This Row],[План ДВН, чел.]]*100,1)","v":{"$error":"#DIV/0!"}}]
["Апрель","ДВН","МСЧ № 2 г. Калуги",0,0,0,{"$f":"Таблица1[[#This Row],[Оплачено случаев]]-Таблица1[[#This Row],[План ДВН, чел.]]","v":0},{"$f":"ROUND(Таблица1[[#This Row],[Оплачено случаев]]/Таблица1[[#This Row],[План ДВН, чел.]]*100,1)","v":{"$error":"#DIV/0!"}}]
["Апрель","ДВН","МСЧ МВД",0,0,0,{"$f":"Таблица1[[#This Row],[Оплачено случаев]]-Таблица1[[#This Row],[План ДВН, чел.]]","v":0},{"$f":"ROUND(Таблица1[[#This Row],[Оплачено случаев]]/Таблица1[[#This Row],[План ДВН, чел.]]*100,1)","v":{"$error":"#DIV/0!"}}]
["Апрель","ДВН","ЧУЗ \"Больница \"РЖД - Медицина\" ",0,0,0,{"$f":"Таблица1[[#This Row],[Оплачено случаев]]-Таблица1[[#This Row],[План ДВН, чел.]]","v":0},{"$f":"ROUND(Таблица1[[#This Row],[Оплачено случаев]]/Таблица1[[#This Row],[План ДВН, чел.]]*100,1)","v":{"$error":"#DIV/0!"}}]
["Апрель","ДВН","КБ № 8 ФМБА",0,0,0,{"$f":"Таблица1[[#This Row],[Оплачено случаев]]-Таблица1[[#This Row],[План ДВН, чел.]]","v":0},{"$f":"ROUND(Таблица1[[#This Row],[Оплачено случаев]]/Таблица1[[#This Row],[План ДВН, чел.]]*100,1)","v":{"$error":"#DIV/0!"}}]
["Апрель","ДВН","ЦРБ Бабынинского района",0,0,0,{"$f":"Таблица1[[#This Row],[Оплачено случаев]]-Таблица1[[#This Row],[План ДВН, чел.]]","v":0},{"$f":"ROUND(Таблица1[[#This Row],[Оплачено случаев]]/Таблица1[[#This Row],[План ДВН, чел.]]*100,1)","v":{"$error":"#DIV/0!"}}]
["Апрель","ДВН","ЦРБ Боровского района",0,0,0,{"$f":"Таблица1[[#This Row],[Оплачено случаев]]-Таблица1[[#This Row],[План ДВН, чел.]]","v":0},{"$f":"ROUND(Таблица1[[#This Row],[Оплачено случаев]]/Таблица1[[#This Row],[План ДВН, чел.]]*100,1)","v":{"$error":"#DIV/0!"}}]
["Апрель","ДВН","ЦРБ Жуковского района",0,0,0,{"$f":"Таблица1[[#This Row],[Оплачено случаев]]-Таблица1[[#This Row],[План ДВН, чел.]]","v":0},{"$f":"ROUND(Таблица1[[#This Row],[Оплачено случаев]]/Таблица1[[#This Row],[План ДВН, чел.]]*100,1)","v":{"$error":"#DIV/0!"}}]
["Апрель","ДВН","ГП \"Город Кременки\"",0,0,0,{"$f":"Таблица1[[#This Row],[Оплачено случаев]]-Таблица1[[#This Row],[План ДВН, чел.]]","v":0},{"$f":"ROUND(Таблица1[[#This Row],[Оплачено случаев]]/Таблица1[[#This Row],[План ДВН, чел.]]*100,1)","v":{"$error":"#DIV/0!"}}]
["Апрель","ДВН","ЦРБ Малоярославецкого района",0,0,0,{"$f":"Таблица1[[#This Row],[Оплачено случаев]]-Таблица1[[#This Row],[План ДВН, чел.]]","v":0},{"$f":"ROUND(Таблица1[[#This Row],[Оплачено случаев]]/Таблица1[[#This Row],[План ДВН, чел.]]*100,1)","v":{"$error":"#DIV/0!"}}]
["Апрель","ДВН","ЦРБ  Тарусского района",0,0,0,{"$f":"Таблица1[[#This Row],[Оплачено случаев]]-Таблица1[[#This Row],[План ДВН, чел.]]","v":0},{"$f":"ROUND(Таблица1[[#This Row],[Оплачено случаев]]/Таблица1[[#This Row],[План ДВН, чел.]]*100,1)","v":{"$error":"#DIV/0!"}}]
["Май","ДВН","ЦМБ № 1",{"$f":"AD4","v":0},{"$f":"AE4","v":0},{"$f":"AF4","v":0},{"$f":"Таблица1[[#This Row],[Оплачено случаев]]-Таблица1[[#This Row],[План ДВН, чел.]]","v":0},{"$f":"ROUND(Таблица1[[#This Row],[Оплачено случаев]]/Таблица1[[#This Row],[План ДВН, чел.]]*100,1)","v":{"$error":"#DIV/0!"}}]
["Май","ДВН","ЦМБ № 2",0,0,0,{"$f":"Таблица1[[#This Row],[Оплачено случаев]]-Таблица1[[#This Row],[План ДВН, чел.]]","v":0},{"$f":"ROUND(Таблица1[[#This Row],[Оплачено случаев]]/Таблица1[[#This Row],[План ДВН, чел.]]*100,1)","v":{"$error":"#DIV/0!"}}]
["Май","ДВН","ЦМБ № 3",0,0,0,{"$f":"Таблица1[[#This Row],[Оплачено случаев]]-Таблица1[[#This Row],[План ДВН, чел.]]","v":0},{"$f":"ROUND(Таблица1[[#This Row],[Оплачено случаев]]/Таблица1[[#This Row],[План ДВН, чел.]]*100,1)","v":{"$error":"#DIV/0!"}}]
["Май","ДВН","ЦМБ № 4",0,0,0,{"$f":"Таблица1[[#This Row],[Оплачено случаев]]-Таблица1[[#This Row],[План ДВН, чел.]]","v":0},{"$f":"ROUND(Таблица1[[#This Row],[Оплачено случаев]]/Таблица1[[#This Row],[План ДВН, чел.]]*100,1)","v":{"$error":"#DIV/0!"}}]
["Май","ДВН","ЦМБ № 5",0,0,0,{"$f":"Таблица1[[#This Row],[Оплачено случаев]]-Таблица1[[#This Row],[План ДВН, чел.]]","v":0},{"$f":"ROUND(Таблица1[[#This Row],[Оплачено случаев]]/Таблица1[[#This Row],[План ДВН, чел.]]*100,1)","v":{"$error":"#DIV/0!"}}]
["Май","ДВН","ЦМБ № 6",0,0,0,{"$f":"Таблица1[[#This Row],[Оплачено случаев]]-Таблица1[[#This Row],[План ДВН, чел.]]","v":0},{"$f":"ROUND(Таблица1[[#This Row],[Оплачено случаев]]/Таблица1[[#This Row],[План ДВН, чел.]]*100,1)","v":{"$error":"#DIV/0!"}}]
["Май","ДВН","КГБ № 5",0,0,0,{"$f":"Таблица1[[#This Row],[Оплачено случаев]]-Таблица1[[#This Row],[План ДВН, чел.]]","v":0},{"$f":"ROUND(Таблица1[[#This Row],[Оплачено случаев]]/Таблица1[[#This Row],[План ДВН, чел.]]*100,1)","v":{"$error":"#DIV/0!"}}]
["Май","ДВН","КГКБ № 4",0,0,0,{"$f":"Таблица1[[#This Row],[Оплачено случаев]]-Таблица1[[#This Row],[План ДВН, чел.]]","v":0},{"$f":"ROUND(Таблица1[[#This Row],[Оплачено случаев]]/Таблица1[[#This Row],[План ДВН, чел.]]*100,1)","v":{"$error":"#DIV/0!"}}]
["Май","ДВН","Городская поликлиника",0,0,0,{"$f":"Таблица1[[#This Row],[Оплачено случаев]]-Таблица1[[#This Row],[План ДВН, чел.]]","v":0},{"$f":"ROUND(Таблица1[[#This Row],[Оплачено случаев]]/Таблица1[[#This Row],[План ДВН, чел.]]*100,1)","v":{"$error":"#DIV/0!"}}]
["Май","ДВН","МСЧ № 1 г. Калуги",0,0,0,{"$f":"Таблица1[[#This Row],[Оплачено случаев]]-Таблица1[[#This Row],[План ДВН, чел.]]","v":0},{"$f":"ROUND(Таблица1[[#This Row],[Оплачено случаев]]/Таблица1[[#This Row],[План ДВН, чел.]]*100,1)","v":{"$error":"#DIV/0!"}}]
["Май","ДВН","МСЧ № 2 г. Калуги",0,0,0,{"$f":"Таблица1[[#This Row],[Оплачено случаев]]-Таблица1[[#This Row],[План ДВН, чел.]]","v":0},{"$f":"ROUND(Таблица1[[#This Row],[Оплачено случаев]]/Таблица1[[#This Row],[План ДВН, чел.]]*100,1)","v":{"$error":"#DIV/0!"}}]
["Май","ДВН","МСЧ МВД",0,0,0,{"$f":"Таблица1[[#This Row],[Оплачено случаев]]-Таблица1[[#This Row],[План ДВН, чел.]]","v":0},{"$f":"ROUND(Таблица1[[#This Row],[Оплачено случаев]]/Таблица1[[#This Row],[План ДВН, чел.]]*100,1)","v":{"$error":"#DIV/0!"}}]
["Май","ДВН","ЧУЗ \"Больница \"РЖД - Медицина\" ",0,0,0,{"$f":"Таблица1[[#This Row],[Оплачено случаев]]-Таблица1[[#This Row],[План ДВН, чел.]]","v":0},{"$f":"ROUND(Таблица1[[#This Row],[Оплачено случаев]]/Таблица1[[#This Row],[План ДВН, чел.]]*100,1)","v":{"$error":"#DIV/0!"}}]
["Май","ДВН","КБ № 8 ФМБА",0,0,0,{"$f":"Таблица1[[#This Row],[Оплачено случаев]]-Таблица1[[#This Row],[План ДВН, чел.]]","v":0},{"$f":"ROUND(Таблица1[[#This Row],[Оплачено случаев]]/Таблица1[[#This Row],[План ДВН, чел.]]*100,1)","v":{"$error":"#DIV/0!"}}]
["Май","ДВН","ЦРБ Бабынинского района",0,0,0,{"$f":"Таблица1[[#This Row],[Оплачено случаев]]-Таблица1[[#This Row],[План ДВН, чел.]]","v":0},{"$f":"ROUND(Таблица1[[#This Row],[Оплачено случаев]]/Таблица1[[#This Row],[План ДВН, чел.]]*100,1)","v":{"$error":"#DIV/0!"}}]
["Май","ДВН","ЦРБ Боровского района",0,0,0,{"$f":"Таблица1[[#This Row],[Оплачено случаев]]-Таблица1[[#This Row],[План ДВН, чел.]]","v":0},{"$f":"ROUND(Таблица1[[#This Row],[Оплачено случаев]]/Таблица1[[#This Row],[План ДВН, чел.]]*100,1)","v":{"$error":"#DIV/0!"}}]
["Май","ДВН","ЦРБ Жуковского района",0,0,0,{"$f":"Таблица1[[#This Row],[Оплачено случаев]]-Таблица1[[#This Row],[План ДВН, чел.]]","v":0},{"$f":"ROUND(Таблица1[[#This Row],[Оплачено случаев]]/Таблица1[[#This Row],[План ДВН, чел.]]*100,1)","v":{"$error":"#DIV/0!"}}]
["Май","ДВН","ГП \"Город Кременки\"",0,0,0,{"$f":"Таблица1[[#This Row],[Оплачено случаев]]-Таблица1[[#This Row],[План ДВН, чел.]]","v":0},{"$f":"ROUND(Таблица1[[#This Row],[Оплачено случаев]]/Таблица1[[#This Row],[План ДВН, чел.]]*100,1)","v":{"$error":"#DIV/0!"}}]
["Май","ДВН","ЦРБ Малоярославецкого района",0,0,0,{"$f":"Таблица1[[#This Row],[Оплачено случаев]]-Таблица1[[#This Row],[План ДВН, чел.]]","v":0},{"$f":"ROUND(Таблица1[[#This Row],[Оплачено случаев]]/Таблица1[[#This Row],[План ДВН, чел.]]*100,1)","v":{"$error":"#DIV/0!"}}]
["Май","ДВН","ЦРБ  Тарусского района",0,0,0,{"$f":"Таблица1[[#This Row],[Оплачено случаев]]-Таблица1[[#This Row],[План ДВН, чел.]]","v":0},{"$f":"ROUND(Таблица1[[#This Row],[Оплачено случаев]]/Таблица1[[#This Row],[План ДВН, чел.]]*100,1)","v":{"$error":"#DIV/0!"}}]
["Июнь","ДВН","ЦМБ № 1",{"$f":"AI4","v":0},{"$f":"AJ4","v":0},{"$f":"AK4","v":0},{"$f":"Таблица1[[#This Row],[Оплачено случаев]]-Таблица1[[#This Row],[План ДВН, чел.]]","v":0},{"$f":"ROUND(Таблица1[[#This Row],[Оплачено случаев]]/Таблица1[[#This Row],[План ДВН, чел.]]*100,1)","v":{"$error":"#DIV/0!"}}]
["Июнь","ДВН","ЦМБ № 2",0,0,0,{"$f":"Таблица1[[#This Row],[Оплачено случаев]]-Таблица1[[#This Row],[План ДВН, чел.]]","v":0},{"$f":"ROUND(Таблица1[[#This Row],[Оплачено случаев]]/Таблица1[[#This Row],[План ДВН, чел.]]*100,1)","v":{"$error":"#DIV/0!"}}]
["Июнь","ДВН","ЦМБ № 3",0,0,0,{"$f":"Таблица1[[#This Row],[Оплачено случаев]]-Таблица1[[#This Row],[План ДВН, чел.]]","v":0},{"$f":"ROUND(Таблица1[[#This Row],[Оплачено случаев]]/Таблица1[[#This Row],[План ДВН, чел.]]*100,1)","v":{"$error":"#DIV/0!"}}]
["Июнь","ДВН","ЦМБ № 4",0,0,0,{"$f":"Таблица1[[#This Row],[Оплачено случаев]]-Таблица1[[#This Row],[План ДВН, чел.]]","v":0},{"$f":"ROUND(Таблица1[[#This Row],[Оплачено случаев]]/Таблица1[[#This Row],[План ДВН, чел.]]*100,1)","v":{"$error":"#DIV/0!"}}]
["Июнь","ДВН","ЦМБ № 5",0,0,0,{"$f":"Таблица1[[#This Row],[Оплачено случаев]]-Таблица1[[#This Row],[План ДВН, чел.]]","v":0},{"$f":"ROUND(Таблица1[[#This Row],[Оплачено случаев]]/Таблица1[[#This Row],[План ДВН, чел.]]*100,1)","v":{"$error":"#DIV/0!"}}]
["Июнь","ДВН","ЦМБ № 6",0,0,0,{"$f":"Таблица1[[#This Row],[Оплачено случаев]]-Таблица1[[#This Row],[План ДВН, чел.]]","v":0},{"$f":"ROUND(Таблица1[[#This Row],[Оплачено случаев]]/Таблица1[[#This Row],[План ДВН, чел.]]*100,1)","v":{"$error":"#DIV/0!"}}]
["Июнь","ДВН","КГБ № 5",0,0,0,{"$f":"Таблица1[[#This Row],[Оплачено случаев]]-Таблица1[[#This Row],[План ДВН, чел.]]","v":0},{"$f":"ROUND(Таблица1[[#This Row],[Оплачено случаев]]/Таблица1[[#This Row],[План ДВН, чел.]]*100,1)","v":{"$error":"#DIV/0!"}}]
["Июнь","ДВН","КГКБ № 4",0,0,0,{"$f":"Таблица1[[#This Row],[Оплачено случаев]]-Таблица1[[#This Row],[План ДВН, чел.]]","v":0},{"$f":"ROUND(Таблица1[[#This Row],[Оплачено случаев]]/Таблица1[[#This Row],[План ДВН, чел.]]*100,1)","v":{"$error":"#DIV/0!"}}]
["Июнь","ДВН","Городская поликлиника",0,0,0,{"$f":"Таблица1[[#This Row],[Оплачено случаев]]-Таблица1[[#This Row],[План ДВН, чел.]]","v":0},{"$f":"ROUND(Таблица1[[#This Row],[Оплачено случаев]]/Таблица1[[#This Row],[План ДВН, чел.]]*100,1)","v":{"$error":"#DIV/0!"}}]
["Июнь","ДВН","МСЧ № 1 г. Калуги",0,0,0,{"$f":"Таблица1[[#This Row],[Оплачено случаев]]-Таблица1[[#This Row],[План ДВН, чел.]]","v":0},{"$f":"ROUND(Таблица1[[#This Row],[Оплачено случаев]]/Таблица1[[#This Row],[План ДВН, чел.]]*100,1)","v":{"$error":"#DIV/0!"}}]
["Июнь","ДВН","МСЧ № 2 г. Калуги",0,0,0,{"$f":"Таблица1[[#This Row],[Оплачено случаев]]-Таблица1[[#This Row],[План ДВН, чел.]]","v":0},{"$f":"ROUND(Таблица1[[#This Row],[Оплачено случаев]]/Таблица1[[#This Row],[План ДВН, чел.]]*100,1)","v":{"$error":"#DIV/0!"}}]
["Июнь","ДВН","МСЧ МВД",0,0,0,{"$f":"Таблица1[[#This Row],[Оплачено случаев]]-Таблица1[[#This Row],[План ДВН, чел.]]","v":0},{"$f":"ROUND(Таблица1[[#This Row],[Оплачено случаев]]/Таблица1[[#This Row],[План ДВН, чел.]]*100,1)","v":{"$error":"#DIV/0!"}}]
["Июнь","ДВН","ЧУЗ \"Больница \"РЖД - Медицина\" ",0,0,0,{"$f":"Таблица1[[#This Row],[Оплачено случаев]]-Таблица1[[#This Row],[План ДВН, чел.]]","v":0},{"$f":"ROUND(Таблица1[[#This Row],[Оплачено случаев]]/Таблица1[[#This Row],[План ДВН, чел.]]*100,1)","v":{"$error":"#DIV/0!"}}]
["Июнь","ДВН","КБ № 8 ФМБА",0,0,0,{"$f":"Таблица1[[#This Row],[Оплачено случаев]]-Таблица1[[#This Row],[План ДВН, чел.]]","v":0},{"$f":"ROUND(Таблица1[[#This Row],[Оплачено случаев]]/Таблица1[[#This Row],[План ДВН, чел.]]*100,1)","v":{"$error":"#DIV/0!"}}]
["Июнь","ДВН","ЦРБ Бабынинского района",0,0,0,{"$f":"Таблица1[[#This Row],[Оплачено случаев]]-Таблица1[[#This Row],[План ДВН, чел.]]","v":0},{"$f":"ROUND(Таблица1[[#This Row],[Оплачено случаев]]/Таблица1[[#This Row],[План ДВН, чел.]]*100,1)","v":{"$error":"#DIV/0!"}}]
["Июнь","ДВН","ЦРБ Боровского района",0,0,0,{"$f":"Таблица1[[#This Row],[Оплачено случаев]]-Таблица1[[#This Row],[План ДВН, чел.]]","v":0},{"$f":"ROUND(Таблица1[[#This Row],[Оплачено случаев]]/Таблица1[[#This Row],[План ДВН, чел.]]*100,1)","v":{"$error":"#DIV/0!"}}]
["Июнь","ДВН","ЦРБ Жуковского района",0,0,0,{"$f":"Таблица1[[#This Row],[Оплачено случаев]]-Таблица1[[#This Row],[План ДВН, чел.]]","v":0},{"$f":"ROUND(Таблица1[[#This Row],[Оплачено случаев]]/Таблица1[[#This Row],[План ДВН, чел.]]*100,1)","v":{"$error":"#DIV/0!"}}]
["Июнь","ДВН","ГП \"Город Кременки\"",0,0,0,{"$f":"Таблица1[[#This Row],[Оплачено случаев]]-Таблица1[[#This Row],[План ДВН, чел.]]","v":0},{"$f":"ROUND(Таблица1[[#This Row],[Оплачено случаев]]/Таблица1[[#This Row],[План ДВН, чел.]]*100,1)","v":{"$error":"#DIV/0!"}}]
["Июнь","ДВН","ЦРБ Малоярославецкого района",0,0,0,{"$f":"Таблица1[[#This Row],[Оплачено случаев]]-Таблица1[[#This Row],[План ДВН, чел.]]","v":0},{"$f":"ROUND(Таблица1[[#This Row],[Оплачено случаев]]/Таблица1[[#This Row],[План ДВН, чел.]]*100,1)","v":{"$error":"#DIV/0!"}}]
["Июнь","ДВН","ЦРБ  Тарусского района",0,0,0,{"$f":"Таблица1[[#This Row],[Оплачено случаев]]-Таблица1[[#This Row],[План ДВН, чел.]]","v":0},{"$f":"ROUND(Таблица1[[#This Row],[Оплачено случаев]]/Таблица1[[#This Row],[План ДВН, чел.]]*100,1)","v":{"$error":"#DIV/0!"}}]
["Июль","ДВН","ЦМБ № 1",{"$f":"AN4","v":0},{"$f":"AO4","v":0},{"$f":"AP4","v":0},{"$f":"Таблица1[[#This Row],[Оплачено случаев]]-Таблица1[[#This Row],[План ДВН, чел.]]","v":0},{"$f":"ROUND(Таблица1[[#This Row],[Оплачено случаев]]/Таблица1[[#This Row],[План ДВН, чел.]]*100,1)","v":{"$error":"#DIV/0!"}}]
["Июль","ДВН","ЦМБ № 2",0,0,0,{"$f":"Таблица1[[#This Row],[Оплачено случаев]]-Таблица1[[#This Row],[План ДВН, чел.]]","v":0},{"$f":"ROUND(Таблица1[[#This Row],[Оплачено случаев]]/Таблица1[[#This Row],[План ДВН, чел.]]*100,1)","v":{"$error":"#DIV/0!"}}]
["Июль","ДВН","ЦМБ № 3",0,0,0,{"$f":"Таблица1[[#This Row],[Оплачено случаев]]-Таблица1[[#This Row],[План ДВН, чел.]]","v":0},{"$f":"ROUND(Таблица1[[#This Row],[Оплачено случаев]]/Таблица1[[#This Row],[План ДВН, чел.]]*100,1)","v":{"$error":"#DIV/0!"}}]
["Июль","ДВН","ЦМБ № 4",0,0,0,{"$f":"Таблица1[[#This Row],[Оплачено случаев]]-Таблица1[[#This Row],[План ДВН, чел.]]","v":0},{"$f":"ROUND(Таблица1[[#This Row],[Оплачено случаев]]/Таблица1[[#This Row],[План ДВН, чел.]]*100,1)","v":{"$error":"#DIV/0!"}}]
["Июль","ДВН","ЦМБ № 5",0,0,0,{"$f":"Таблица1[[#This Row],[Оплачено случаев]]-Таблица1[[#This Row],[План ДВН, чел.]]","v":0},{"$f":"ROUND(Таблица1[[#This Row],[Оплачено случаев]]/Таблица1[[#This Row],[План ДВН, чел.]]*100,1)","v":{"$error":"#DIV/0!"}}]
["Июль","ДВН","ЦМБ № 6",0,0,0,{"$f":"Таблица1[[#This Row],[Оплачено случаев]]-Таблица1[[#This Row],[План ДВН, чел.]]","v":0},{"$f":"ROUND(Таблица1[[#This Row],[Оплачено случаев]]/Таблица1[[#This Row],[План ДВН, чел.]]*100,1)","v":{"$error":"#DIV/0!"}}]
["Июль","ДВН","КГБ № 5",0,0,0,{"$f":"Таблица1[[#This Row],[Оплачено случаев]]-Таблица1[[#This Row],[План ДВН, чел.]]","v":0},{"$f":"ROUND(Таблица1[[#This Row],[Оплачено случаев]]/Таблица1[[#This Row],[План ДВН, чел.]]*100,1)","v":{"$error":"#DIV/0!"}}]
["Июль","ДВН","КГКБ № 4",0,0,0,{"$f":"Таблица1[[#This Row],[Оплачено случаев]]-Таблица1[[#This Row],[План ДВН, чел.]]","v":0},{"$f":"ROUND(Таблица1[[#This Row],[Оплачено случаев]]/Таблица1[[#This Row],[План ДВН, чел.]]*100,1)","v":{"$error":"#DIV/0!"}}]
["Июль","ДВН","Городская поликлиника",0,0,0,{"$f":"Таблица1[[#This Row],[Оплачено случаев]]-Таблица1[[#This Row],[План ДВН, чел.]]","v":0},{"$f":"ROUND(Таблица1[[#This Row],[Оплачено случаев]]/Таблица1[[#This Row],[План ДВН, чел.]]*100,1)","v":{"$error":"#DIV/0!"}}]
["Июль","ДВН","МСЧ № 1 г. Калуги",0,0,0,{"$f":"Таблица1[[#This Row],[Оплачено случаев]]-Таблица1[[#This Row],[План ДВН, чел.]]","v":0},{"$f":"ROUND(Таблица1[[#This Row],[Оплачено случаев]]/Таблица1[[#This Row],[План ДВН, чел.]]*100,1)","v":{"$error":"#DIV/0!"}}]
["Июль","ДВН","МСЧ № 2 г. Калуги",0,0,0,{"$f":"Таблица1[[#This Row],[Оплачено случаев]]-Таблица1[[#This Row],[План ДВН, чел.]]","v":0},{"$f":"ROUND(Таблица1[[#This Row],[Оплачено случаев]]/Таблица1[[#This Row],[План ДВН, чел.]]*100,1)","v":{"$error":"#DIV/0!"}}]
["Июль","ДВН","МСЧ МВД",0,0,0,{"$f":"Таблица1[[#This Row],[Оплачено случаев]]-Таблица1[[#This Row],[План ДВН, чел.]]","v":0},{"$f":"ROUND(Таблица1[[#This Row],[Оплачено случаев]]/Таблица1[[#This Row],[План ДВН, чел.]]*100,1)","v":{"$error":"#DIV/0!"}}]
["Июль","ДВН","ЧУЗ \"Больница \"РЖД - Медицина\" ",0,0,0,{"$f":"Таблица1[[#This Row],[Оплачено случаев]]-Таблица1[[#This Row],[План ДВН, чел.]]","v":0},{"$f":"ROUND(Таблица1[[#This Row],[Оплачено случаев]]/Таблица1[[#This Row],[План ДВН, чел.]]*100,1)","v":{"$error":"#DIV/0!"}}]
["Июль","ДВН","КБ № 8 ФМБА",0,0,0,{"$f":"Таблица1[[#This Row],[Оплачено случаев]]-Таблица1[[#This Row],[План ДВН, чел.]]","v":0},{"$f":"ROUND(Таблица1[[#This Row],[Оплачено случаев]]/Таблица1[[#This Row],[План ДВН, чел.]]*100,1)","v":{"$error":"#DIV/0!"}}]
["Июль","ДВН","ЦРБ Бабынинского района",0,0,0,{"$f":"Таблица1[[#This Row],[Оплачено случаев]]-Таблица1[[#This Row],[План ДВН, чел.]]","v":0},{"$f":"ROUND(Таблица1[[#This Row],[Оплачено случаев]]/Таблица1[[#This Row],[План ДВН, чел.]]*100,1)","v":{"$error":"#DIV/0!"}}]
["Июль","ДВН","ЦРБ Боровского района",0,0,0,{"$f":"Таблица1[[#This Row],[Оплачено случаев]]-Таблица1[[#This Row],[План ДВН, чел.]]","v":0},{"$f":"ROUND(Таблица1[[#This Row],[Оплачено случаев]]/Таблица1[[#This Row],[План ДВН, чел.]]*100,1)","v":{"$error":"#DIV/0!"}}]
["Июль","ДВН","ЦРБ Жуковского района",0,0,0,{"$f":"Таблица1[[#This Row],[Оплачено случаев]]-Таблица1[[#This Row],[План ДВН, чел.]]","v":0},{"$f":"ROUND(Таблица1[[#This Row],[Оплачено случаев]]/Таблица1[[#This Row],[План ДВН, чел.]]*100,1)","v":{"$error":"#DIV/0!"}}]
["Июль","ДВН","ГП \"Город Кременки\"",0,0,0,{"$f":"Таблица1[[#This Row],[Оплачено случаев]]-Таблица1[[#This Row],[План ДВН, чел.]]","v":0},{"$f":"ROUND(Таблица1[[#This Row],[Оплачено случаев]]/Таблица1[[#This Row],[План ДВН, чел.]]*100,1)","v":{"$error":"#DIV/0!"}}]
["Июль","ДВН","ЦРБ Малоярославецкого района",0,0,0,{"$f":"Таблица1[[#This Row],[Оплачено случаев]]-Таблица1[[#This Row],[План ДВН, чел.]]","v":0},{"$f":"ROUND(Таблица1[[#This Row],[Оплачено случаев]]/Таблица1[[#This Row],[План ДВН, чел.]]*100,1)","v":{"$error":"#DIV/0!"}}]
["Июль","ДВН","ЦРБ  Тарусского района",0,0,0,{"$f":"Таблица1[[#This Row],[Оплачено случаев]]-Таблица1[[#This Row],[План ДВН, чел.]]","v":0},{"$f":"ROUND(Таблица1[[#This Row],[Оплачено случаев]]/Таблица1[[#This Row],[План ДВН, чел.]]*100,1)","v":{"$error":"#DIV/0!"}}]
["Август","ДВН","ЦМБ № 1",{"$f":"AS4","v":0},{"$f":"AT4","v":0},{"$f":"AU4","v":0},{"$f":"Таблица1[[#This Row],[Оплачено случаев]]-Таблица1[[#This Row],[План ДВН, чел.]]","v":0},{"$f":"ROUND(Таблица1[[#This Row],[Оплачено случаев]]/Таблица1[[#This Row],[План ДВН, чел.]]*100,1)","v":{"$error":"#DIV/0!"}}]
["Август","ДВН","ЦМБ № 2",0,0,0,{"$f":"Таблица1[[#This Row],[Оплачено случаев]]-Таблица1[[#This Row],[План ДВН, чел.]]","v":0},{"$f":"ROUND(Таблица1[[#This Row],[Оплачено случаев]]/Таблица1[[#This Row],[План ДВН, чел.]]*100,1)","v":{"$error":"#DIV/0!"}}]
["Август","ДВН","ЦМБ № 3",0,0,0,{"$f":"Таблица1[[#This Row],[Оплачено случаев]]-Таблица1[[#This Row],[План ДВН, чел.]]","v":0},{"$f":"ROUND(Таблица1[[#This Row],[Оплачено случаев]]/Таблица1[[#This Row],[План ДВН, чел.]]*100,1)","v":{"$error":"#DIV/0!"}}]
["Август","ДВН","ЦМБ № 4",0,0,0,{"$f":"Таблица1[[#This Row],[Оплачено случаев]]-Таблица1[[#This Row],[План ДВН, чел.]]","v":0},{"$f":"ROUND(Таблица1[[#This Row],[Оплачено случаев]]/Таблица1[[#This Row],[План ДВН, чел.]]*100,1)","v":{"$error":"#DIV/0!"}}]
["Август","ДВН","ЦМБ № 5",0,0,0,{"$f":"Таблица1[[#This Row],[Оплачено случаев]]-Таблица1[[#This Row],[План ДВН, чел.]]","v":0},{"$f":"ROUND(Таблица1[[#This Row],[Оплачено случаев]]/Таблица1[[#This Row],[План ДВН, чел.]]*100,1)","v":{"$error":"#DIV/0!"}}]
["Август","ДВН","ЦМБ № 6",0,0,0,{"$f":"Таблица1[[#This Row],[Оплачено случаев]]-Таблица1[[#This Row],[План ДВН, чел.]]","v":0},{"$f":"ROUND(Таблица1[[#This Row],[Оплачено случаев]]/Таблица1[[#This Row],[План ДВН, чел.]]*100,1)","v":{"$error":"#DIV/0!"}}]
["Август","ДВН","КГБ № 5",0,0,0,{"$f":"Таблица1[[#This Row],[Оплачено случаев]]-Таблица1[[#This Row],[План ДВН, чел.]]","v":0},{"$f":"ROUND(Таблица1[[#This Row],[Оплачено случаев]]/Таблица1[[#This Row],[План ДВН, чел.]]*100,1)","v":{"$error":"#DIV/0!"}}]
["Август","ДВН","КГКБ № 4",0,0,0,{"$f":"Таблица1[[#This Row],[Оплачено случаев]]-Таблица1[[#This Row],[План ДВН, чел.]]","v":0},{"$f":"ROUND(Таблица1[[#This Row],[Оплачено случаев]]/Таблица1[[#This Row],[План ДВН, чел.]]*100,1)","v":{"$error":"#DIV/0!"}}]
["Август","ДВН","Городская поликлиника",0,0,0,{"$f":"Таблица1[[#This Row],[Оплачено случаев]]-Таблица1[[#This Row],[План ДВН, чел.]]","v":0},{"$f":"ROUND(Таблица1[[#This Row],[Оплачено случаев]]/Таблица1[[#This Row],[План ДВН, чел.]]*100,1)","v":{"$error":"#DIV/0!"}}]
["Август","ДВН","МСЧ № 1 г. Калуги",0,0,0,{"$f":"Таблица1[[#This Row],[Оплачено случаев]]-Таблица1[[#This Row],[План ДВН, чел.]]","v":0},{"$f":"ROUND(Таблица1[[#This Row],[Оплачено случаев]]/Таблица1[[#This Row],[План ДВН, чел.]]*100,1)","v":{"$error":"#DIV/0!"}}]
["Август","ДВН","МСЧ № 2 г. Калуги",0,0,0,{"$f":"Таблица1[[#This Row],[Оплачено случаев]]-Таблица1[[#This Row],[План ДВН, чел.]]","v":0},{"$f":"ROUND(Таблица1[[#This Row],[Оплачено случаев]]/Таблица1[[#This Row],[План ДВН, чел.]]*100,1)","v":{"$error":"#DIV/0!"}}]
["Август","ДВН","МСЧ МВД",0,0,0,{"$f":"Таблица1[[#This Row],[Оплачено случаев]]-Таблица1[[#This Row],[План ДВН, чел.]]","v":0},{"$f":"ROUND(Таблица1[[#This Row],[Оплачено случаев]]/Таблица1[[#This Row],[План ДВН, чел.]]*100,1)","v":{"$error":"#DIV/0!"}}]
["Август","ДВН","ЧУЗ \"Больница \"РЖД - Медицина\" ",0,0,0,{"$f":"Таблица1[[#This Row],[Оплачено случаев]]-Таблица1[[#This Row],[План ДВН, чел.]]","v":0},{"$f":"ROUND(Таблица1[[#This Row],[Оплачено случаев]]/Таблица1[[#This Row],[План ДВН, чел.]]*100,1)","v":{"$error":"#DIV/0!"}}]
["Август","ДВН","КБ № 8 ФМБА",0,0,0,{"$f":"Таблица1[[#This Row],[Оплачено случаев]]-Таблица1[[#This Row],[План ДВН, чел.]]","v":0},{"$f":"ROUND(Таблица1[[#This Row],[Оплачено случаев]]/Таблица1[[#This Row],[План ДВН, чел.]]*100,1)","v":{"$error":"#DIV/0!"}}]
["Август","ДВН","ЦРБ Бабынинского района",0,0,0,{"$f":"Таблица1[[#This Row],[Оплачено случаев]]-Таблица1[[#This Row],[План ДВН, чел.]]","v":0},{"$f":"ROUND(Таблица1[[#This Row],[Оплачено случаев]]/Таблица1[[#This Row],[План ДВН, чел.]]*100,1)","v":{"$error":"#DIV/0!"}}]
["Август","ДВН","ЦРБ Боровского района",0,0,0,{"$f":"Таблица1[[#This Row],[Оплачено случаев]]-Таблица1[[#This Row],[План ДВН, чел.]]","v":0},{"$f":"ROUND(Таблица1[[#This Row],[Оплачено случаев]]/Таблица1[[#This Row],[План ДВН, чел.]]*100,1)","v":{"$error":"#DIV/0!"}}]
["Август","ДВН","ЦРБ Жуковского района",0,0,0,{"$f":"Таблица1[[#This Row],[Оплачено случаев]]-Таблица1[[#This Row],[План ДВН, чел.]]","v":0},{"$f":"ROUND(Таблица1[[#This Row],[Оплачено случаев]]/Таблица1[[#This Row],[План ДВН, чел.]]*100,1)","v":{"$error":"#DIV/0!"}}]
["Август","ДВН","ГП \"Город Кременки\"",0,0,0,{"$f":"Таблица1[[#This Row],[Оплачено случаев]]-Таблица1[[#This Row],[План ДВН, чел.]]","v":0},{"$f":"ROUND(Таблица1[[#This Row],[Оплачено случаев]]/Таблица1[[#This Row],[План ДВН, чел.]]*100,1)","v":{"$error":"#DIV/0!"}}]
["Август","ДВН","ЦРБ Малоярославецкого района",0,0,0,{"$f":"Таблица1[[#This Row],[Оплачено случаев]]-Таблица1[[#This Row],[План ДВН, чел.]]","v":0},{"$f":"ROUND(Таблица1[[#This Row],[Оплачено случаев]]/Таблица1[[#This Row],[План ДВН, чел.]]*100,1)","v":{"$error":"#DIV/0!"}}]
["Август","ДВН","ЦРБ  Тарусского района",0,0,0,{"$f":"Таблица1[[#This Row],[Оплачено случаев]]-Таблица1[[#This Row],[План ДВН, чел.]]","v":0},{"$f":"ROUND(Таблица1[[#This Row],[Оплачено случаев]]/Таблица1[[#This Row],[План ДВН, чел.]]*100,1)","v":{"$error":"#DIV/0!"}}]
["Сентябрь","ДВН","ЦМБ № 1",{"$f":"AX4","v":0},{"$f":"AY4","v":0},{"$f":"AZ4","v":0},{"$f":"Таблица1[[#This Row],[Оплачено случаев]]-Таблица1[[#This Row],[План ДВН, чел.]]","v":0},{"$f":"ROUND(Таблица1[[#This Row],[Оплачено случаев]]/Таблица1[[#This Row],[План ДВН, чел.]]*100,1)","v":{"$error":"#DIV/0!"}}]
["Сентябрь","ДВН","ЦМБ № 2",0,0,0,{"$f":"Таблица1[[#This Row],[Оплачено случаев]]-Таблица1[[#This Row],[План ДВН, чел.]]","v":0},{"$f":"ROUND(Таблица1[[#This Row],[Оплачено случаев]]/Таблица1[[#This Row],[План ДВН, чел.]]*100,1)","v":{"$error":"#DIV/0!"}}]
["Сентябрь","ДВН","ЦМБ № 3",0,0,0,{"$f":"Таблица1[[#This Row],[Оплачено случаев]]-Таблица1[[#This Row],[План ДВН, чел.]]","v":0},{"$f":"ROUND(Таблица1[[#This Row],[Оплачено случаев]]/Таблица1[[#This Row],[План ДВН, чел.]]*100,1)","v":{"$error":"#DIV/0!"}}]
["Сентябрь","ДВН","ЦМБ № 4",0,0,0,{"$f":"Таблица1[[#This Row],[Оплачено случаев]]-Таблица1[[#This Row],[План ДВН, чел.]]","v":0},{"$f":"ROUND(Таблица1[[#This Row],[Оплачено случаев]]/Таблица1[[#This Row],[План ДВН, чел.]]*100,1)","v":{"$error":"#DIV/0!"}}]
["Сентябрь","ДВН","ЦМБ № 5",0,0,0,{"$f":"Таблица1[[#This Row],[Оплачено случаев]]-Таблица1[[#This Row],[План ДВН, чел.]]","v":0},{"$f":"ROUND(Таблица1[[#This Row],[Оплачено случаев]]/Таблица1[[#This Row],[План ДВН, чел.]]*100,1)","v":{"$error":"#DIV/0!"}}]
["Сентябрь","ДВН","ЦМБ № 6",0,0,0,{"$f":"Таблица1[[#This Row],[Оплачено случаев]]-Таблица1[[#This Row],[План ДВН, чел.]]","v":0},{"$f":"ROUND(Таблица1[[#This Row],[Оплачено случаев]]/Таблица1[[#This Row],[План ДВН, чел.]]*100,1)","v":{"$error":"#DIV/0!"}}]
["Сентябрь","ДВН","КГБ № 5",0,0,0,{"$f":"Таблица1[[#This Row],[Оплачено случаев]]-Таблица1[[#This Row],[План ДВН, чел.]]","v":0},{"$f":"ROUND(Таблица1[[#This Row],[Оплачено случаев]]/Таблица1[[#This Row],[План ДВН, чел.]]*100,1)","v":{"$error":"#DIV/0!"}}]
["Сентябрь","ДВН","КГКБ № 4",0,0,0,{"$f":"Таблица1[[#This Row],[Оплачено случаев]]-Таблица1[[#This Row],[План ДВН, чел.]]","v":0},{"$f":"ROUND(Таблица1[[#This Row],[Оплачено случаев]]/Таблица1[[#This Row],[План ДВН, чел.]]*100,1)","v":{"$error":"#DIV/0!"}}]
["Сентябрь","ДВН","Городская поликлиника",0,0,0,{"$f":"Таблица1[[#This Row],[Оплачено случаев]]-Таблица1[[#This Row],[План ДВН, чел.]]","v":0},{"$f":"ROUND(Таблица1[[#This Row],[Оплачено случаев]]/Таблица1[[#This Row],[План ДВН, чел.]]*100,1)","v":{"$error":"#DIV/0!"}}]
["Сентябрь","ДВН","МСЧ № 1 г. Калуги",0,0,0,{"$f":"Таблица1[[#This Row],[Оплачено случаев]]-Таблица1[[#This Row],[План ДВН, чел.]]","v":0},{"$f":"ROUND(Таблица1[[#This Row],[Оплачено случаев]]/Таблица1[[#This Row],[План ДВН, чел.]]*100,1)","v":{"$error":"#DIV/0!"}}]
["Сентябрь","ДВН","МСЧ № 2 г. Калуги",0,0,0,{"$f":"Таблица1[[#This Row],[Оплачено случаев]]-Таблица1[[#This Row],[План ДВН, чел.]]","v":0},{"$f":"ROUND(Таблица1[[#This Row],[Оплачено случаев]]/Таблица1[[#This Row],[План ДВН, чел.]]*100,1)","v":{"$error":"#DIV/0!"}}]
["Сентябрь","ДВН","МСЧ МВД",0,0,0,{"$f":"Таблица1[[#This Row],[Оплачено случаев]]-Таблица1[[#This Row],[План ДВН, чел.]]","v":0},{"$f":"ROUND(Таблица1[[#This Row],[Оплачено случаев]]/Таблица1[[#This Row],[План ДВН, чел.]]*100,1)","v":{"$error":"#DIV/0!"}}]
["Сентябрь","ДВН","ЧУЗ \"Больница \"РЖД - Медицина\" ",0,0,0,{"$f":"Таблица1[[#This Row],[Оплачено случаев]]-Таблица1[[#This Row],[План ДВН, чел.]]","v":0},{"$f":"ROUND(Таблица1[[#This Row],[Оплачено случаев]]/Таблица1[[#This Row],[План ДВН, чел.]]*100,1)","v":{"$error":"#DIV/0!"}}]
["Сентябрь","ДВН","КБ № 8 ФМБА",0,0,0,{"$f":"Таблица1[[#This Row],[Оплачено случаев]]-Таблица1[[#This Row],[План ДВН, чел.]]","v":0},{"$f":"ROUND(Таблица1[[#This Row],[Оплачено случаев]]/Таблица1[[#This Row],[План ДВН, чел.]]*100,1)","v":{"$error":"#DIV/0!"}}]
["Сентябрь","ДВН","ЦРБ Бабынинского района",0,0,0,{"$f":"Таблица1[[#This Row],[Оплачено случаев]]-Таблица1[[#This Row],[План ДВН, чел.]]","v":0},{"$f":"ROUND(Таблица1[[#This Row],[Оплачено случаев]]/Таблица1[[#This Row],[План ДВН, чел.]]*100,1)","v":{"$error":"#DIV/0!"}}]
["Сентябрь","ДВН","ЦРБ Боровского района",0,0,0,{"$f":"Таблица1[[#This Row],[Оплачено случаев]]-Таблица1[[#This Row],[План ДВН, чел.]]","v":0},{"$f":"ROUND(Таблица1[[#This Row],[Оплачено случаев]]/Таблица1[[#This Row],[План ДВН, чел.]]*100,1)","v":{"$error":"#DIV/0!"}}]
["Сентябрь","ДВН","ЦРБ Жуковского района",0,0,0,{"$f":"Таблица1[[#This Row],[Оплачено случаев]]-Таблица1[[#This Row],[План ДВН, чел.]]","v":0},{"$f":"ROUND(Таблица1[[#This Row],[Оплачено случаев]]/Таблица1[[#This Row],[План ДВН, чел.]]*100,1)","v":{"$error":"#DIV/0!"}}]
["Сентябрь","ДВН","ГП \"Город Кременки\"",0,0,0,{"$f":"Таблица1[[#This Row],[Оплачено случаев]]-Таблица1[[#This Row],[План ДВН, чел.]]","v":0},{"$f":"ROUND(Таблица1[[#This Row],[Оплачено случаев]]/Таблица1[[#This Row],[План ДВН, чел.]]*100,1)","v":{"$error":"#DIV/0!"}}]
["Сентябрь","ДВН","ЦРБ Малоярославецкого района",0,0,0,{"$f":"Таблица1[[#This Row],[Оплачено случаев]]-Таблица1[[#This Row],[План ДВН, чел.]]","v":0},{"$f":"ROUND(Таблица1[[#This Row],[Оплачено случаев]]/Таблица1[[#This Row],[План ДВН, чел.]]*100,1)","v":{"$error":"#DIV/0!"}}]
["Сентябрь","ДВН","ЦРБ  Тарусского района",0,0,0,{"$f":"Таблица1[[#This Row],[Оплачено случаев]]-Таблица1[[#This Row],[План ДВН, чел.]]","v":0},{"$f":"ROUND(Таблица1[[#This Row],[Оплачено случаев]]/Таблица1[[#This Row],[План ДВН, чел.]]*100,1)","v":{"$error":"#DIV/0!"}}]
["Октябрь","ДВН","ЦМБ № 1",{"$f":"BC4","v":0},{"$f":"BD4","v":0},{"$f":"BE4","v":0},{"$f":"Таблица1[[#This Row],[Оплачено случаев]]-Таблица1[[#This Row],[План ДВН, чел.]]","v":0},{"$f":"ROUND(Таблица1[[#This Row],[Оплачено случаев]]/Таблица1[[#This Row],[План ДВН, чел.]]*100,1)","v":{"$error":"#DIV/0!"}}]
["Октябрь","ДВН","ЦМБ № 2",0,0,0,{"$f":"Таблица1[[#This Row],[Оплачено случаев]]-Таблица1[[#This Row],[План ДВН, чел.]]","v":0},{"$f":"ROUND(Таблица1[[#This Row],[Оплачено случаев]]/Таблица1[[#This Row],[План ДВН, чел.]]*100,1)","v":{"$error":"#DIV/0!"}}]
["Октябрь","ДВН","ЦМБ № 3",0,0,0,{"$f":"Таблица1[[#This Row],[Оплачено случаев]]-Таблица1[[#This Row],[План ДВН, чел.]]","v":0},{"$f":"ROUND(Таблица1[[#This Row],[Оплачено случаев]]/Таблица1[[#This Row],[План ДВН, чел.]]*100,1)","v":{"$error":"#DIV/0!"}}]
["Октябрь","ДВН","ЦМБ № 4",0,0,0,{"$f":"Таблица1[[#This Row],[Оплачено случаев]]-Таблица1[[#This Row],[План ДВН, чел.]]","v":0},{"$f":"ROUND(Таблица1[[#This Row],[Оплачено случаев]]/Таблица1[[#This Row],[План ДВН, чел.]]*100,1)","v":{"$error":"#DIV/0!"}}]
["Октябрь","ДВН","ЦМБ № 5",0,0,0,{"$f":"Таблица1[[#This Row],[Оплачено случаев]]-Таблица1[[#This Row],[План ДВН, чел.]]","v":0},{"$f":"ROUND(Таблица1[[#This Row],[Оплачено случаев]]/Таблица1[[#This Row],[План ДВН, чел.]]*100,1)","v":{"$error":"#DIV/0!"}}]
["Октябрь","ДВН","ЦМБ № 6",0,0,0,{"$f":"Таблица1[[#This Row],[Оплачено случаев]]-Таблица1[[#This Row],[План ДВН, чел.]]","v":0},{"$f":"ROUND(Таблица1[[#This Row],[Оплачено случаев]]/Таблица1[[#This Row],[План ДВН, чел.]]*100,1)","v":{"$error":"#DIV/0!"}}]
["Октябрь","ДВН","КГБ № 5",0,0,0,{"$f":"Таблица1[[#This Row],[Оплачено случаев]]-Таблица1[[#This Row],[План ДВН, чел.]]","v":0},{"$f":"ROUND(Таблица1[[#This Row],[Оплачено случаев]]/Таблица1[[#This Row],[План ДВН, чел.]]*100,1)","v":{"$error":"#DIV/0!"}}]
["Октябрь","ДВН","КГКБ № 4",0,0,0,{"$f":"Таблица1[[#This Row],[Оплачено случаев]]-Таблица1[[#This Row],[План ДВН, чел.]]","v":0},{"$f":"ROUND(Таблица1[[#This Row],[Оплачено случаев]]/Таблица1[[#This Row],[План ДВН, чел.]]*100,1)","v":{"$error":"#DIV/0!"}}]
["Октябрь","ДВН","Городская поликлиника",0,0,0,{"$f":"Таблица1[[#This Row],[Оплачено случаев]]-Таблица1[[#This Row],[План ДВН, чел.]]","v":0},{"$f":"ROUND(Таблица1[[#This Row],[Оплачено случаев]]/Таблица1[[#This Row],[План ДВН, чел.]]*100,1)","v":{"$error":"#DIV/0!"}}]
["Октябрь","ДВН","МСЧ № 1 г. Калуги",0,0,0,{"$f":"Таблица1[[#This Row],[Оплачено случаев]]-Таблица1[[#This Row],[План ДВН, чел.]]","v":0},{"$f":"ROUND(Таблица1[[#This Row],[Оплачено случаев]]/Таблица1[[#This Row],[План ДВН, чел.]]*100,1)","v":{"$error":"#DIV/0!"}}]
["Октябрь","ДВН","МСЧ № 2 г. Калуги",0,0,0,{"$f":"Таблица1[[#This Row],[Оплачено случаев]]-Таблица1[[#This Row],[План ДВН, чел.]]","v":0},{"$f":"ROUND(Таблица1[[#This Row],[Оплачено случаев]]/Таблица1[[#This Row],[План ДВН, чел.]]*100,1)","v":{"$error":"#DIV/0!"}}]
["Октябрь","ДВН","МСЧ МВД",0,0,0,{"$f":"Таблица1[[#This Row],[Оплачено случаев]]-Таблица1[[#This Row],[План ДВН, чел.]]","v":0},{"$f":"ROUND(Таблица1[[#This Row],[Оплачено случаев]]/Таблица1[[#This Row],[План ДВН, чел.]]*100,1)","v":{"$error":"#DIV/0!"}}]
["Октябрь","ДВН","ЧУЗ \"Больница \"РЖД - Медицина\" ",0,0,0,{"$f":"Таблица1[[#This Row],[Оплачено случаев]]-Таблица1[[#This Row],[План ДВН, чел.]]","v":0},{"$f":"ROUND(Таблица1[[#This Row],[Оплачено случаев]]/Таблица1[[#This Row],[План ДВН, чел.]]*100,1)","v":{"$error":"#DIV/0!"}}]
["Октябрь","ДВН","КБ № 8 ФМБА",0,0,0,{"$f":"Таблица1[[#This Row],[Оплачено случаев]]-Таблица1[[#This Row],[План ДВН, чел.]]","v":0},{"$f":"ROUND(Таблица1[[#This Row],[Оплачено случаев]]/Таблица1[[#This Row],[План ДВН, чел.]]*100,1)","v":{"$error":"#DIV/0!"}}]
["Октябрь","ДВН","ЦРБ Бабынинского района",0,0,0,{"$f":"Таблица1[[#This Row],[Оплачено случаев]]-Таблица1[[#This Row],[План ДВН, чел.]]","v":0},{"$f":"ROUND(Таблица1[[#This Row],[Оплачено случаев]]/Таблица1[[#This Row],[План ДВН, чел.]]*100,1)","v":{"$error":"#DIV/0!"}}]
["Октябрь","ДВН","ЦРБ Боровского района",0,0,0,{"$f":"Таблица1[[#This Row],[Оплачено случаев]]-Таблица1[[#This Row],[План ДВН, чел.]]","v":0},{"$f":"ROUND(Таблица1[[#This Row],[Оплачено случаев]]/Таблица1[[#This Row],[План ДВН, чел.]]*100,1)","v":{"$error":"#DIV/0!"}}]
["Октябрь","ДВН","ЦРБ Жуковского района",0,0,0,{"$f":"Таблица1[[#This Row],[Оплачено случаев]]-Таблица1[[#This Row],[План ДВН, чел.]]","v":0},{"$f":"ROUND(Таблица1[[#This Row],[Оплачено случаев]]/Таблица1[[#This Row],[План ДВН, чел.]]*100,1)","v":{"$error":"#DIV/0!"}}]
["Октябрь","ДВН","ГП \"Город Кременки\"",0,0,0,{"$f":"Таблица1[[#This Row],[Оплачено случаев]]-Таблица1[[#This Row],[План ДВН, чел.]]","v":0},{"$f":"ROUND(Таблица1[[#This Row],[Оплачено случаев]]/Таблица1[[#This Row],[План ДВН, чел.]]*100,1)","v":{"$error":"#DIV/0!"}}]
["Октябрь","ДВН","ЦРБ Малоярославецкого района",0,0,0,{"$f":"Таблица1[[#This Row],[Оплачено случаев]]-Таблица1[[#This Row],[План ДВН, чел.]]","v":0},{"$f":"ROUND(Таблица1[[#This Row],[Оплачено случаев]]/Таблица1[[#This Row],[План ДВН, чел.]]*100,1)","v":{"$error":"#DIV/0!"}}]
["Октябрь","ДВН","ЦРБ  Тарусского района",0,0,0,{"$f":"Таблица1[[#This Row],[Оплачено случаев]]-Таблица1[[#This Row],[План ДВН, чел.]]","v":0},{"$f":"ROUND(Таблица1[[#This Row],[Оплачено случаев]]/Таблица1[[#This Row],[План ДВН, чел.]]*100,1)","v":{"$error":"#DIV/0!"}}]
["Ноябрь","ДВН","ЦМБ № 1",{"$f":"BH4","v":0},{"$f":"BI4","v":0},{"$f":"BJ4","v":0},{"$f":"Таблица1[[#This Row],[Оплачено случаев]]-Таблица1[[#This Row],[План ДВН, чел.]]","v":0},{"$f":"ROUND(Таблица1[[#This Row],[Оплачено случаев]]/Таблица1[[#This Row],[План ДВН, чел.]]*100,1)","v":{"$error":"#DIV/0!"}}]
["Ноябрь","ДВН","ЦМБ № 2",0,0,0,{"$f":"Таблица1[[#This Row],[Оплачено случаев]]-Таблица1[[#This Row],[План ДВН, чел.]]","v":0},{"$f":"ROUND(Таблица1[[#This Row],[Оплачено случаев]]/Таблица1[[#This Row],[План ДВН, чел.]]*100,1)","v":{"$error":"#DIV/0!"}}]
["Ноябрь","ДВН","ЦМБ № 3",0,0,0,{"$f":"Таблица1[[#This Row],[Оплачено случаев]]-Таблица1[[#This Row],[План ДВН, чел.]]","v":0},{"$f":"ROUND(Таблица1[[#This Row],[Оплачено случаев]]/Таблица1[[#This Row],[План ДВН, чел.]]*100,1)","v":{"$error":"#DIV/0!"}}]
["Ноябрь","ДВН","ЦМБ № 4",0,0,0,{"$f":"Таблица1[[#This Row],[Оплачено случаев]]-Таблица1[[#This Row],[План ДВН, чел.]]","v":0},{"$f":"ROUND(Таблица1[[#This Row],[Оплачено случаев]]/Таблица1[[#This Row],[План ДВН, чел.]]*100,1)","v":{"$error":"#DIV/0!"}}]
["Ноябрь","ДВН","ЦМБ № 5",0,0,0,{"$f":"Таблица1[[#This Row],[Оплачено случаев]]-Таблица1[[#This Row],[План ДВН, чел.]]","v":0},{"$f":"ROUND(Таблица1[[#This Row],[Оплачено случаев]]/Таблица1[[#This Row],[План ДВН, чел.]]*100,1)","v":{"$error":"#DIV/0!"}}]
["Ноябрь","ДВН","ЦМБ № 6",0,0,0,{"$f":"Таблица1[[#This Row],[Оплачено случаев]]-Таблица1[[#This Row],[План ДВН, чел.]]","v":0},{"$f":"ROUND(Таблица1[[#This Row],[Оплачено случаев]]/Таблица1[[#This Row],[План ДВН, чел.]]*100,1)","v":{"$error":"#DIV/0!"}}]
["Ноябрь","ДВН","КГБ № 5",0,0,0,{"$f":"Таблица1[[#This Row],[Оплачено случаев]]-Таблица1[[#This Row],[План ДВН, чел.]]","v":0},{"$f":"ROUND(Таблица1[[#This Row],[Оплачено случаев]]/Таблица1[[#This Row],[План ДВН, чел.]]*100,1)","v":{"$error":"#DIV/0!"}}]
["Ноябрь","ДВН","КГКБ № 4",0,0,0,{"$f":"Таблица1[[#This Row],[Оплачено случаев]]-Таблица1[[#This Row],[План ДВН, чел.]]","v":0},{"$f":"ROUND(Таблица1[[#This Row],[Оплачено случаев]]/Таблица1[[#This Row],[План ДВН, чел.]]*100,1)","v":{"$error":"#DIV/0!"}}]
["Ноябрь","ДВН","Городская поликлиника",0,0,0,{"$f":"Таблица1[[#This Row],[Оплачено случаев]]-Таблица1[[#This Row],[План ДВН, чел.]]","v":0},{"$f":"ROUND(Таблица1[[#This Row],[Оплачено случаев]]/Таблица1[[#This Row],[План ДВН, чел.]]*100,1)","v":{"$error":"#DIV/0!"}}]
["Ноябрь","ДВН","МСЧ № 1 г. Калуги",0,0,0,{"$f":"Таблица1[[#This Row],[Оплачено случаев]]-Таблица1[[#This Row],[План ДВН, чел.]]","v":0},{"$f":"ROUND(Таблица1[[#This Row],[Оплачено случаев]]/Таблица1[[#This Row],[План ДВН, чел.]]*100,1)","v":{"$error":"#DIV/0!"}}]
["Ноябрь","ДВН","МСЧ № 2 г. Калуги",0,0,0,{"$f":"Таблица1[[#This Row],[Оплачено случаев]]-Таблица1[[#This Row],[План ДВН, чел.]]","v":0},{"$f":"ROUND(Таблица1[[#This Row],[Оплачено случаев]]/Таблица1[[#This Row],[План ДВН, чел.]]*100,1)","v":{"$error":"#DIV/0!"}}]
["Ноябрь","ДВН","МСЧ МВД",0,0,0,{"$f":"Таблица1[[#This Row],[Оплачено случаев]]-Таблица1[[#This Row],[План ДВН, чел.]]","v":0},{"$f":"ROUND(Таблица1[[#This Row],[Оплачено случаев]]/Таблица1[[#This Row],[План ДВН, чел.]]*100,1)","v":{"$error":"#DIV/0!"}}]
["Ноябрь","ДВН","ЧУЗ \"Больница \"РЖД - Медицина\" ",0,0,0,{"$f":"Таблица1[[#This Row],[Оплачено случаев]]-Таблица1[[#This Row],[План ДВН, чел.]]","v":0},{"$f":"ROUND(Таблица1[[#This Row],[Оплачено случаев]]/Таблица1[[#This Row],[План ДВН, чел.]]*100,1)","v":{"$error":"#DIV/0!"}}]
["Ноябрь","ДВН","КБ № 8 ФМБА",0,0,0,{"$f":"Таблица1[[#This Row],[Оплачено случаев]]-Таблица1[[#This Row],[План ДВН, чел.]]","v":0},{"$f":"ROUND(Таблица1[[#This Row],[Оплачено случаев]]/Таблица1[[#This Row],[План ДВН, чел.]]*100,1)","v":{"$error":"#DIV/0!"}}]
["Ноябрь","ДВН","ЦРБ Бабынинского района",0,0,0,{"$f":"Таблица1[[#This Row],[Оплачено случаев]]-Таблица1[[#This Row],[План ДВН, чел.]]","v":0},{"$f":"ROUND(Таблица1[[#This Row],[Оплачено случаев]]/Таблица1[[#This Row],[План ДВН, чел.]]*100,1)","v":{"$error":"#DIV/0!"}}]
["Ноябрь","ДВН","ЦРБ Боровского района",0,0,0,{"$f":"Таблица1[[#This Row],[Оплачено случаев]]-Таблица1[[#This Row],[План ДВН, чел.]]","v":0},{"$f":"ROUND(Таблица1[[#This Row],[Оплачено случаев]]/Таблица1[[#This Row],[План ДВН, чел.]]*100,1)","v":{"$error":"#DIV/0!"}}]
["Ноябрь","ДВН","ЦРБ Жуковского района",0,0,0,{"$f":"Таблица1[[#This Row],[Оплачено случаев]]-Таблица1[[#This Row],[План ДВН, чел.]]","v":0},{"$f":"ROUND(Таблица1[[#This Row],[Оплачено случаев]]/Таблица1[[#This Row],[План ДВН, чел.]]*100,1)","v":{"$error":"#DIV/0!"}}]
["Ноябрь","ДВН","ГП \"Город Кременки\"",0,0,0,{"$f":"Таблица1[[#This Row],[Оплачено случаев]]-Таблица1[[#This Row],[План ДВН, чел.]]","v":0},{"$f":"ROUND(Таблица1[[#This Row],[Оплачено случаев]]/Таблица1[[#This Row],[План ДВН, чел.]]*100,1)","v":{"$error":"#DIV/0!"}}]
["Ноябрь","ДВН","ЦРБ Малоярославецкого района",0,0,0,{"$f":"Таблица1[[#This Row],[Оплачено случаев]]-Таблица1[[#This Row],[План ДВН, чел.]]","v":0},{"$f":"ROUND(Таблица1[[#This Row],[Оплачено случаев]]/Таблица1[[#This Row],[План ДВН, чел.]]*100,1)","v":{"$error":"#DIV/0!"}}]
["Ноябрь","ДВН","ЦРБ  Тарусского района",0,0,0,{"$f":"Таблица1[[#This Row],[Оплачено случаев]]-Таблица1[[#This Row],[План ДВН, чел.]]","v":0},{"$f":"ROUND(Таблица1[[#This Row],[Оплачено случаев]]/Таблица1[[#This Row],[План ДВН, чел.]]*100,1)","v":{"$error":"#DIV/0!"}}]
["Декабрь","ДВН","ЦМБ № 1",{"$f":"BM4","v":0},{"$f":"BN4","v":0},{"$f":"BO4","v":0},{"$f":"Таблица1[[#This Row],[Оплачено случаев]]-Таблица1[[#This Row],[План ДВН, чел.]]","v":0},{"$f":"ROUND(Таблица1[[#This Row],[Оплачено случаев]]/Таблица1[[#This Row],[План ДВН, чел.]]*100,1)","v":{"$error":"#DIV/0!"}}]
["Декабрь","ДВН","ЦМБ № 2",0,0,0,{"$f":"Таблица1[[#This Row],[Оплачено случаев]]-Таблица1[[#This Row],[План ДВН, чел.]]","v":0},{"$f":"ROUND(Таблица1[[#This Row],[Оплачено случаев]]/Таблица1[[#This Row],[План ДВН, чел.]]*100,1)","v":{"$error":"#DIV/0!"}}]
["Декабрь","ДВН","ЦМБ № 3",0,0,0,{"$f":"Таблица1[[#This Row],[Оплачено случаев]]-Таблица1[[#This Row],[План ДВН, чел.]]","v":0},{"$f":"ROUND(Таблица1[[#This Row],[Оплачено случаев]]/Таблица1[[#This Row],[План ДВН, чел.]]*100,1)","v":{"$error":"#DIV/0!"}}]
["Декабрь","ДВН","ЦМБ № 4",0,0,0,{"$f":"Таблица1[[#This Row],[Оплачено случаев]]-Таблица1[[#This Row],[План ДВН, чел.]]","v":0},{"$f":"ROUND(Таблица1[[#This Row],[Оплачено случаев]]/Таблица1[[#This Row],[План ДВН, чел.]]*100,1)","v":{"$error":"#DIV/0!"}}]
["Декабрь","ДВН","ЦМБ № 5",0,0,0,{"$f":"Таблица1[[#This Row],[Оплачено случаев]]-Таблица1[[#This Row],[План ДВН, чел.]]","v":0},{"$f":"ROUND(Таблица1[[#This Row],[Оплачено случаев]]/Таблица1[[#This Row],[План ДВН, чел.]]*100,1)","v":{"$error":"#DIV/0!"}}]
["Декабрь","ДВН","ЦМБ № 6",0,0,0,{"$f":"Таблица1[[#This Row],[Оплачено случаев]]-Таблица1[[#This Row],[План ДВН, чел.]]","v":0},{"$f":"ROUND(Таблица1[[#This Row],[Оплачено случаев]]/Таблица1[[#This Row],[План ДВН, чел.]]*100,1)","v":{"$error":"#DIV/0!"}}]
["Декабрь","ДВН","КГБ № 5",0,0,0,{"$f":"Таблица1[[#This Row],[Оплачено случаев]]-Таблица1[[#This Row],[План ДВН, чел.]]","v":0},{"$f":"ROUND(Таблица1[[#This Row],[Оплачено случаев]]/Таблица1[[#This Row],[План ДВН, чел.]]*100,1)","v":{"$error":"#DIV/0!"}}]
["Декабрь","ДВН","КГКБ № 4",0,0,0,{"$f":"Таблица1[[#This Row],[Оплачено случаев]]-Таблица1[[#This Row],[План ДВН, чел.]]","v":0},{"$f":"ROUND(Таблица1[[#This Row],[Оплачено случаев]]/Таблица1[[#This Row],[План ДВН, чел.]]*100,1)","v":{"$error":"#DIV/0!"}}]
["Декабрь","ДВН","Городская поликлиника",0,0,0,{"$f":"Таблица1[[#This Row],[Оплачено случаев]]-Таблица1[[#This Row],[План ДВН, чел.]]","v":0},{"$f":"ROUND(Таблица1[[#This Row],[Оплачено случаев]]/Таблица1[[#This Row],[План ДВН, чел.]]*100,1)","v":{"$error":"#DIV/0!"}}]
["Декабрь","ДВН","МСЧ № 1 г. Калуги",0,0,0,{"$f":"Таблица1[[#This Row],[Оплачено случаев]]-Таблица1[[#This Row],[План ДВН, чел.]]","v":0},{"$f":"ROUND(Таблица1[[#This Row],[Оплачено случаев]]/Таблица1[[#This Row],[План ДВН, чел.]]*100,1)","v":{"$error":"#DIV/0!"}}]
["Декабрь","ДВН","МСЧ № 2 г. Калуги",0,0,0,{"$f":"Таблица1[[#This Row],[Оплачено случаев]]-Таблица1[[#This Row],[План ДВН, чел.]]","v":0},{"$f":"ROUND(Таблица1[[#This Row],[Оплачено случаев]]/Таблица1[[#This Row],[План ДВН, чел.]]*100,1)","v":{"$error":"#DIV/0!"}}]
["Декабрь","ДВН","МСЧ МВД",0,0,0,{"$f":"Таблица1[[#This Row],[Оплачено случаев]]-Таблица1[[#This Row],[План ДВН, чел.]]","v":0},{"$f":"ROUND(Таблица1[[#This Row],[Оплачено случаев]]/Таблица1[[#This Row],[План ДВН, чел.]]*100,1)","v":{"$error":"#DIV/0!"}}]
["Декабрь","ДВН","ЧУЗ \"Больница \"РЖД - Медицина\" ",0,0,0,{"$f":"Таблица1[[#This Row],[Оплачено случаев]]-Таблица1[[#This Row],[План ДВН, чел.]]","v":0},{"$f":"ROUND(Таблица1[[#This Row],[Оплачено случаев]]/Таблица1[[#This Row],[План ДВН, чел.]]*100,1)","v":{"$error":"#DIV/0!"}}]
["Декабрь","ДВН","КБ № 8 ФМБА",0,0,0,{"$f":"Таблица1[[#This Row],[Оплачено случаев]]-Таблица1[[#This Row],[План ДВН, чел.]]","v":0},{"$f":"ROUND(Таблица1[[#This Row],[Оплачено случаев]]/Таблица1[[#This Row],[План ДВН, чел.]]*100,1)","v":{"$error":"#DIV/0!"}}]
["Декабрь","ДВН","ЦРБ Бабынинского района",0,0,0,{"$f":"Таблица1[[#This Row],[Оплачено случаев]]-Таблица1[[#This Row],[План ДВН, чел.]]","v":0},{"$f":"ROUND(Таблица1[[#This Row],[Оплачено случаев]]/Таблица1[[#This Row],[План ДВН, чел.]]*100,1)","v":{"$error":"#DIV/0!"}}]
["Декабрь","ДВН","ЦРБ Боровского района",0,0,0,{"$f":"Таблица1[[#This Row],[Оплачено случаев]]-Таблица1[[#This Row],[План ДВН, чел.]]","v":0},{"$f":"ROUND(Таблица1[[#This Row],[Оплачено случаев]]/Таблица1[[#This Row],[План ДВН, чел.]]*100,1)","v":{"$error":"#DIV/0!"}}]
["Декабрь","ДВН","ЦРБ Жуковского района",0,0,0,{"$f":"Таблица1[[#This Row],[Оплачено случаев]]-Таблица1[[#This Row],[План ДВН, чел.]]","v":0},{"$f":"ROUND(Таблица1[[#This Row],[Оплачено случаев]]/Таблица1[[#This Row],[План ДВН, чел.]]*100,1)","v":{"$error":"#DIV/0!"}}]
["Декабрь","ДВН","ГП \"Город Кременки\"",0,0,0,{"$f":"Таблица1[[#This Row],[Оплачено случаев]]-Таблица1[[#This Row],[План ДВН, чел.]]","v":0},{"$f":"ROUND(Таблица1[[#This Row],[Оплачено случаев]]/Таблица1[[#This Row],[План ДВН, чел.]]*100,1)","v":{"$error":"#DIV/0!"}}]
["Декабрь","ДВН","ЦРБ Малоярославецкого района",0,0,0,{"$f":"Таблица1[[#This Row],[Оплачено случаев]]-Таблица1[[#This Row],[План ДВН, чел.]]","v":0},{"$f":"ROUND(Таблица1[[#This Row],[Оплачено случаев]]/Таблица1[[#This Row],[План ДВН, чел.]]*100,1)","v":{"$error":"#DIV/0!"}}]
["Декабрь","ДВН","ЦРБ  Тарусского района",0,0,0,{"$f":"Таблица1[[#This Row],[Оплачено случаев]]-Таблица1[[#This Row],[План ДВН, чел.]]","v":0},{"$f":"ROUND(Таблица1[[#This Row],[Оплачено случаев]]/Таблица1[[#This Row],[План ДВН, чел.]]*100,1)","v":{"$error":"#DIV/0!"}}]

{"sheet":"Все МО","index":1,"n_rows":24,"n_cols":3,"rows_kept":24,"cut":false,"hidden":true,"merged":[]}
["Месяц","Март"]
[]
["Названия строк","Оплачено случаев ","План ДВН, чел. "]
["МСЧ МВД",0,0]
["МСЧ № 2 г. Калуги",1,0]
["ГП \"Город Кременки\"",19,50]
["ЧУЗ \"Больница \"РЖД - Медицина\" ",36,36]
["ЦРБ  Тарусского района",56,50]
["ЦМБ № 4",62,137]
["ЦМБ № 3",104,244]
["ЦРБ Бабынинского района",114,101]
["ЦРБ Малоярославецкого района",169,273]
["ЦМБ № 1",183,336]
["ЦМБ № 5",226,146]
["ЦРБ Жуковского района",289,120]
["ЦРБ Боровского района",297,200]
["ЦМБ № 2",338,530]
["ЦМБ № 6",349,350]
["Городская поликлиника",413,456]
["КБ № 8 ФМБА",564,875]
["МСЧ № 1 г. Калуги",830,600]
["КГБ № 5",1031,1100]
["КГКБ № 4",1150,912]
["Общий итог",6231,6516]

{"sheet":"10 лучших","index":2,"n_rows":14,"n_cols":2,"rows_kept":14,"cut":false,"hidden":true,"merged":[]}
["Месяц","Март"]
[]
["Названия строк","% выполнения "]
["КГБ № 5",93.7]
["ЦМБ № 6",99.7]
["ЧУЗ \"Больница \"РЖД - Медицина\" ",100]
["ЦРБ  Тарусского района",112]
["ЦРБ Бабынинского района",112.9]
["КГКБ № 4",126.1]
["МСЧ № 1 г. Калуги",138.30000000000001]
["ЦРБ Боровского района",148.5]
["ЦМБ № 5",154.80000000000001]
["ЦРБ Жуковского района",240.8]
["Общий итог",132.68]

{"sheet":"10 худших","index":3,"n_rows":14,"n_cols":2,"rows_kept":14,"cut":false,"hidden":true,"merged":[]}
["Месяц","Март"]
[]
["Названия строк","% выполнения "]
["ГП \"Город Кременки\"",38]
["ЦМБ № 3",42.6]
["ЦМБ № 4",45.3]
["ЦМБ № 1",54.5]
["ЦРБ Малоярославецкого района",61.9]
["ЦМБ № 2",63.8]
["КБ № 8 ФМБА",64.5]
["Городская поликлиника",90.6]
["КГБ № 5",93.7]
["ЦМБ № 6",99.7]
["Общий итог",65.459999999999994]

{"sheet":"Помесячно по МО","index":4,"n_rows":16,"n_cols":4,"rows_kept":16,"cut":false,"hidden":true,"merged":[]}
["Выполнение ДВН"]
[]
["Названия строк","Оплачено случаев ","План ДВН, чел. ","Отклонение "]
["Январь",376,425,-49]
["Февраль",326,456,-130]
["Март",413,456,-43]
["Апрель",0,0,0]
["Май",0,0,0]
["Июнь",0,0,0]
["Июль",0,0,0]
["Август",0,0,0]
["Сентябрь",0,0,0]
["Октябрь",0,0,0]
["Ноябрь",0,0,0]
["Декабрь",0,0,0]
["Общий итог",1115,1337,-222]

{"sheet":"Дашборд ДВН","index":5,"n_rows":2,"n_cols":1,"rows_kept":2,"cut":false,"hidden":false,"merged":[[1,0,1,24]]}
[]
["ПРОФИЛАКТИЧЕСКИЕ ОСМОТРЫ ВЗРОСЛОГО НАСЕЛЕНИЯ В 2024 ГОДУ"]